Workbook

Sheet HOME
F1: API LNAPL Transmissivity Workbook
F2: Calculation of LNAPL Transmissivity from Baildown Test Data
B4: STEP 1: RESET OUTPUT SUMMARY
G6: STEP 4: LNAPL TRANSMISSIVITY SUMMARY
B11: STEP 2: ENTER DATA & VIEW FIGURES
B12: STEP 3: CHOOSE WELL CONDITIONS | I12: Mean LNAPL Transmissivity (m2/d)
I13: 0.2902096594
I16: Standard Deviation (m2/d)
I17: 0.03876984344
I20: Coefficient of Variation
I21: 0.1335925328

Sheet Data
A1: Well Designation: | B1: YYY | C1: Beckett and Lyverse (2002)
A2: Date: | B2: date
A4: Ground Surface Elev (m msl) | B4: 0 | C4: Enter These Data | E4: Drawdown
A5: Top of Casing Elev (m msl) | B5: 0 | E5: Adjustment
A6: Well Casing Radius, rc (m): | B6: 0.052 | C6: re1 | E6: (m)
A7: Well Radius, rw (m): | B7: 0.152 | E7: =Figures!C28 -> 0.025
A8: LNAPL Specific Yield, Sy: | B8: 0.175
A9: LNAPL Density Ratio, rr: | B9: 0.78
A10: Top of Screen (m bgs): | B10: 0
A11: Bottom of Screen (m bgs): | B11: 0
A12: LNAPL Baildown Vol. (liter):
A13: Effective Radius, re3 (m): | B13: =SQRT(B8*(B7^2-B6^2)+B6^2) -> 0.07920858539 | C13: Calculated Parameters
A14: Effective Radius, re2 (m): | B14: =SQRT(-Figures!U27*B6^2+(Figures!U27+1)*B13^2) -> 0.0748465096
A15: Initial Casing LNAPL Vol. (liter): | B15: =PI()*B6^2*(F21-E21)*1000 -> 8.002164276
A16: Initial Filter LNAPL Vol. (liter): | B16: =IF(E21<B10,PI()*(B7^2-B6^2)*B8*(F21-B10)*1000,PI()*(B7^2-B6^2)*B8*(F21-E21)*1000) -> 10.5649876
C18: Enter Data Here | I18: Water Table | J18: LNAPL | M18: LNAPL | U18: LNAPL | V18: Ave.
I19: Depth | J19: Drawdown | L19: Average | M19: Discharge | N19: sn | O19: bn | P19: re | S19: DTP | T19: DTW | U19: Volume | V19: re
B20: Time (min) | C20: DTP (m btoc) | D20: DTW (m btoc) | E20: DTP (m bgs) | F20: DTW (m bgs) | I20: (m) | J20: sn (m) | L20: Time (min) | M20: Qn (m3/d) | N20: (m) | O20: (m) | P20: (m) | S20: (m bgs) | T20: (m bgs) | U20: (liters) | V20: (m)
A21: Initial Fluid Levels: | B21: 0 | C21: 6.796 | D21: 7.738 | E21: =C21+B4-B5 -> 6.796 | F21: =D21+B4-B5 -> 7.738 | I21: =E21+(1-B$9)*(F21-E21) -> 7.00324 | O21: =F21-E21 -> 0.942
A23: Enter Test Data: | B23: 1 | C23: 6.951 | D23: 7.104 | E23: =IF(B23>=0,C23+B$4-B$5,NA()) -> 6.951 | F23: =IF(B23>=0,D23+B$4-B$5,NA()) -> 7.104 | I23: =E23+(1-B$9)*(F23-E23) -> 6.98466 | J23: =E23-E$21-E$7 -> 0.13 | O23: =F23-E23 -> 0.153 | U23: 0 | V23: =MAX(V24:V81)/(MAX(L24:L81)-L24) -> 0.07920858539
B24: 1.5 | C24: 6.948 | D24: 7.128 | E24: =IF(B24>0,C24+B$4-B$5,NA()) -> 6.948 | F24: =IF(B24>0,D24+B$4-B$5,NA()) -> 7.128 | I24: =E24+(1-B$9)*(F24-E24) -> 6.9876 | J24: 0.127 | L24: =IF(B24>0,0.5*(B23+B24),0) -> 1.25 | M24: =IF(B24>0,1440*PI()*P24^2*(E23-E24+F24-F23)/(B24-B23),NA()) -> 1.532676996 | N24: =0.5*(J23+J24) -> 0.1285 | O24: =F24-E24 -> 0.18 | P24: =IF(B24>0,re(B$10,E24,F24,B$6,B$14,B$13), ) -> 0.07920858539 | S24: =(E23+E24)/2 -> 6.9495 | T24: =(F23+F24)/2 -> 7.116 | U24: =U23+M24*(B24-B23)*1000/1440 -> 0.5321795123 | V24: 0
B25: 2 | C25: 6.933 | D25: 7.137 | E25: 6.933 | F25: 7.137 | I25: 6.97788 | J25: 0.112 | L25: =IF(B25>0,0.5*(B24+B25),0) -> 1.75 | M25: =IF(B25>0,1440*PI()*P25^2*(E24-E25+F25-F24)/(B25-B24),NA()) -> 1.362379552 | N25: =0.5*(J24+J25) -> 0.1195 | O25: =F25-E25 -> 0.204 | P25: =IF(B25>0,re(B$10,E25,F25,B$6,B$14,B$13), ) -> 0.07920858539 | S25: =(E24+E25)/2 -> 6.9405 | T25: 7.1325 | U25: =U24+M25*(B25-B24)*1000/1440 -> 1.005227968 | V25: =IF(P25>0,V24+0.5*(P24+P25)*(L25-L24),0) -> 0.0396042927
B26: 3 | C26: 6.93 | D26: 7.165 | E26: 6.93 | F26: 7.165 | I26: 6.9817 | J26: 0.109 | L26: 2.5 | M26: 0.8798701271 | N26: 0.1105 | O26: 0.235 | P26: =IF(B26>0,re(B$10,E26,F26,B$6,B$14,B$13), ) -> 0.07920858539 | S26: 6.9315 | T26: 7.151 | U26: 1.616248889 | V26: =IF(P26>0,V25+0.5*(P25+P26)*(L26-L25),0) -> 0.09901073174
B27: 4 | C27: 6.927 | D27: 7.177 | E27: 6.927 | F27: 7.177 | I27: 6.982 | J27: 0.106 | L27: 3.5 | M27: 0.4257436099 | N27: 0.1075 | O27: 0.25 | P27: =IF(B27>0,re(B$10,E27,F27,B$6,B$14,B$13), ) -> 0.07920858539 | S27: 6.9285 | T27: 7.171 | U27: 1.911904174 | V27: 0.1782193171
B28: 5 | C28: 6.927 | D28: 7.192 | E28: 6.927 | F28: 7.192 | I28: 6.9853 | J28: 0.106 | L28: 4.5 | M28: 0.4257436099 | N28: 0.106 | O28: 0.265 | P28: =IF(B28>0,re(B$10,E28,F28,B$6,B$14,B$13), ) -> 0.07920858539 | S28: 6.927 | T28: 7.1845 | U28: 2.207559459 | V28: 0.2574279025
B29: 7.5 | C29: 6.918 | D29: 7.213 | E29: 6.918 | F29: 7.213 | I29: 6.9829 | J29: 0.097 | L29: 6.25 | M29: 0.3405948879 | N29: 0.1015 | O29: 0.295 | P29: =IF(B29>0,re(B$10,E29,F29,B$6,B$14,B$13), ) -> 0.07920858539 | S29: 6.9225 | T29: 7.2025 | U29: 2.798870028 | V29: 0.396042927
B30: 12 | C30: 6.912 | D30: 7.284 | E30: 6.912 | F30: 7.284 | I30: 6.99384 | J30: 0.091 | L30: 9.75 | M30: 0.4856630809 | N30: 0.094 | O30: 0.372 | P30: =IF(B30>0,re(B$10,E30,F30,B$6,B$14,B$13), ) -> 0.07920858539 | S30: 6.915 | T30: 7.2485 | U30: 4.316567156 | V30: 0.6732729758
B31: 15 | C31: 6.912 | D31: 7.287 | E31: 6.912 | F31: 7.287 | I31: 6.9945 | J31: 0.091 | L31: 13.5 | M31: 0.02838290732 | N31: 0.091 | O31: 0.375 | P31: =IF(B31>0,re(B$10,E31,F31,B$6,B$14,B$13), ) -> 0.07920858539 | S31: 6.912 | T31: 7.2855 | U31: 4.375698213 | V31: 0.9703051711
B32: 20 | C32: 6.902 | D32: 7.311 | E32: 6.902 | F32: 7.311 | I32: 6.99198 | J32: 0.081 | L32: 17.5 | M32: 0.1930037698 | N32: 0.086 | O32: 0.409 | P32: =IF(B32>0,re(B$10,E32,F32,B$6,B$14,B$13), ) -> 0.07920858539 | S32: 6.907 | T32: 7.299 | U32: 5.045850191 | V32: 1.287139513
B33: 25 | C33: 6.896 | D33: 7.329 | E33: 6.896 | F33: 7.329 | I33: 6.99126 | J33: 0.075 | L33: 22.5 | M33: 0.1362379552 | N33: 0.078 | O33: 0.433 | P33: =IF(B33>0,re(B$10,E33,F33,B$6,B$14,B$13), ) -> 0.07920858539 | S33: 6.899 | T33: 7.32 | U33: 5.518898646 | V33: 1.68318244
B34: 30 | C34: 6.893 | D34: 7.338 | E34: 6.893 | F34: 7.338 | I34: 6.9909 | J34: 0.072 | L34: 27.5 | M34: 0.06811897758 | N34: 0.0735 | O34: 0.445 | P34: =IF(B34>0,re(B$10,E34,F34,B$6,B$14,B$13), ) -> 0.07920858539 | S34: 6.8945 | T34: 7.3335 | U34: 5.755422874 | V34: 2.079225367
B35: 40 | C35: 6.89 | D35: 7.363 | E35: 6.89 | F35: 7.363 | I35: 6.99406 | J35: 0.069 | L35: 35 | M35: 0.07947214051 | N35: 0.0705 | O35: 0.473 | P35: =IF(B35>0,re(B$10,E35,F35,B$6,B$14,B$13), ) -> 0.07920858539 | S35: 6.8915 | T35: 7.3505 | U35: 6.307312739 | V35: 2.673289757
B36: 52 | C36: 6.884 | D36: 7.384 | E36: 6.884 | F36: 7.384 | I36: 6.994 | J36: 0.063 | L36: 46 | M36: 0.06386154148 | N36: 0.066 | O36: 0.5 | P36: =IF(B36>0,re(B$10,E36,F36,B$6,B$14,B$13), ) -> 0.07920858539 | S36: 6.887 | T36: 7.3735 | U36: 6.839492251 | V36: 3.544584196
B37: 70 | C37: 6.875 | D37: 7.412 | E37: 6.875 | F37: 7.412 | I37: 6.99314 | J37: 0.054 | L37: 61 | M37: 0.05834264283 | N37: 0.0585 | O37: 0.537 | P37: =IF(B37>0,re(B$10,E37,F37,B$6,B$14,B$13), ) -> 0.07920858539 | S37: 6.8795 | T37: 7.398 | U37: 7.568775287 | V37: 4.732712977
B38: 80 | C38: 6.872 | D38: 7.427 | E38: 6.872 | F38: 7.427 | I38: 6.9941 | J38: 0.051 | L38: 75 | M38: 0.05108923318 | N38: 0.0525 | O38: 0.555 | P38: =IF(B38>0,re(B$10,E38,F38,B$6,B$14,B$13), ) -> 0.07920858539 | S38: 6.8735 | T38: 7.4195 | U38: 7.923561628 | V38: 5.841633173
B39: 90 | C39: 6.869 | D39: 7.436 | E39: 6.869 | F39: 7.436 | I39: 6.99374 | J39: 0.048 | L39: 85 | M39: 0.03405948879 | N39: 0.0495 | O39: 0.567 | P39: =IF(B39>0,re(B$10,E39,F39,B$6,B$14,B$13), ) -> 0.07920858539 | S39: 6.8705 | T39: 7.4315 | U39: 8.160085856 | V39: 6.633719027
B40: 101 | C40: 6.866 | D40: 7.451 | E40: 6.866 | F40: 7.451 | I40: 6.9947 | J40: 0.045 | L40: 95.5 | M40: 0.04644475744 | N40: 0.0465 | O40: 0.585 | P40: =IF(B40>0,re(B$10,E40,F40,B$6,B$14,B$13), ) -> 0.07920858539 | S40: 6.8675 | T40: 7.4435 | U40: 8.514872197 | V40: 7.465409173
B41: 120 | C41: 6.86 | D41: 7.47 | E41: 6.86 | F41: 7.47 | I41: 6.9942 | J41: 0.039 | L41: 110.5 | M41: 0.03734593069 | N41: 0.042 | O41: 0.61 | P41: =IF(B41>0,re(B$10,E41,F41,B$6,B$14,B$13), ) -> 0.07920858539 | S41: 6.863 | T41: 7.4605 | U41: 9.007631005 | V41: 8.653537954
B42: 140 | C42: 6.857 | D42: 7.491 | E42: 6.857 | F42: 7.491 | I42: 6.99648 | J42: 0.036 | L42: 130 | M42: 0.03405948879 | N42: 0.0375 | O42: 0.634 | P42: =IF(B42>0,re(B$10,E42,F42,B$6,B$14,B$13), ) -> 0.07920858539 | S42: 6.8585 | T42: 7.4805 | U42: 9.48067946 | V42: 10.19810537
B43: 170 | C43: 6.851 | D43: 7.515 | E43: 6.851 | F43: 7.515 | I43: =E43+(1-B$9)*(F43-E43) -> 6.99708 | J43: 0.03 | L43: 155 | M43: 0.02838290732 | N43: =0.5*(J42+J43) -> 0.033 | O43: =F43-E43 -> 0.664 | P43: =IF(B43>0,re(B$10,E43,F43,B$6,B$14,B$13), ) -> 0.07920858539 | S43: 6.854 | T43: 7.503 | U43: 10.07199003 | V43: 12.17832
B44: 201 | C44: 6.848 | D44: 7.543 | E44: 6.848 | F44: 7.543 | I44: 7.0009 | J44: 0.027 | L44: 185.5 | M44: 0.02838290732 | N44: 0.0285 | O44: 0.695 | P44: =IF(B44>0,re(B$10,E44,F44,B$6,B$14,B$13), ) -> 0.07920858539 | S44: 6.8495 | T44: 7.529 | U44: 10.68301095 | V44: 14.59418186
B45: 226 | C45: 6.841 | D45: 7.558 | E45: 6.841 | F45: 7.558 | I45: =E45+(1-B$9)*(F45-E45) -> 6.99874 | J45: 0.02 | L45: 213.5 | M45: 0.02497695845 | N45: =0.5*(J44+J45) -> 0.0235 | O45: =F45-E45 -> 0.717 | P45: =IF(B45>0,re(B$10,E45,F45,B$6,B$14,B$13), ) -> 0.07920858539 | S45: 6.8445 | T45: 7.5505 | U45: 11.1166387 | V45: 16.81202225
I46: =E46+(1-B$9)*(F46-E46) ->  | J46: =E46-E$21-E$7 ->  | L46: 0 | N46: =0.5*(J45+J46) ->  | O46: =F46-E46 ->  | P46: =IF(B46>0,re(B$10,E46,F46,B$6,B$14,B$13), ) -> 0 | S46: =(E45+E46)/2 ->  | T46: =(F45+F46)/2 ->  | V46: 0
L47: 0 | P47: =IF(B47>0,re(B$10,E47,F47,B$6,B$14,B$13), ) -> 0 | V47: 0
L48: 0 | P48: =IF(B48>0,re(B$10,E48,F48,B$6,B$14,B$13), ) -> 0 | V48: 0
L49: 0 | P49: =IF(B49>0,re(B$10,E49,F49,B$6,B$14,B$13), ) -> 0 | V49: 0
L50: 0 | P50: =IF(B50>0,re(B$10,E50,F50,B$6,B$14,B$13), ) -> 0 | V50: 0
L51: 0 | P51: =IF(B51>0,re(B$10,E51,F51,B$6,B$14,B$13), ) -> 0 | V51: 0
L52: 0 | P52: =IF(B52>0,re(B$10,E52,F52,B$6,B$14,B$13), ) -> 0 | V52: 0
L53: 0 | P53: =IF(B53>0,re(B$10,E53,F53,B$6,B$14,B$13), ) -> 0 | V53: 0
L54: 0 | P54: =IF(B54>0,re(B$10,E54,F54,B$6,B$14,B$13), ) -> 0 | V54: 0
L55: 0 | P55: =IF(B55>0,re(B$10,E55,F55,B$6,B$14,B$13), ) -> 0 | V55: 0
L56: 0 | P56: =IF(B56>0,re(B$10,E56,F56,B$6,B$14,B$13), ) -> 0 | V56: 0
L57: 0 | P57: =IF(B57>0,re(B$10,E57,F57,B$6,B$14,B$13), ) -> 0 | V57: 0
L58: 0 | P58: =IF(B58>0,re(B$10,E58,F58,B$6,B$14,B$13), ) -> 0 | V58: 0
L59: 0 | P59: =IF(B59>0,re(B$10,E59,F59,B$6,B$14,B$13), ) -> 0 | V59: 0
L60: 0 | P60: =IF(B60>0,re(B$10,E60,F60,B$6,B$14,B$13), ) -> 0 | V60: 0
L61: 0 | P61: =IF(B61>0,re(B$10,E61,F61,B$6,B$14,B$13), ) -> 0 | V61: 0
L62: 0 | P62: =IF(B62>0,re(B$10,E62,F62,B$6,B$14,B$13), ) -> 0 | V62: 0
L63: 0 | P63: =IF(B63>0,re(B$10,E63,F63,B$6,B$14,B$13), ) -> 0 | V63: 0
L64: 0 | P64: =IF(B64>0,re(B$10,E64,F64,B$6,B$14,B$13), ) -> 0 | V64: 0
L65: 0 | P65: =IF(B65>0,re(B$10,E65,F65,B$6,B$14,B$13), ) -> 0 | V65: 0
L66: 0 | P66: =IF(B66>0,re(B$10,E66,F66,B$6,B$14,B$13), ) -> 0 | V66: 0
L67: 0 | P67: =IF(B67>0,re(B$10,E67,F67,B$6,B$14,B$13), ) -> 0 | V67: 0
L68: 0 | P68: =IF(B68>0,re(B$10,E68,F68,B$6,B$14,B$13), ) -> 0 | V68: 0
L69: 0 | P69: =IF(B69>0,re(B$10,E69,F69,B$6,B$14,B$13), ) -> 0 | V69: 0
L70: 0 | P70: =IF(B70>0,re(B$10,E70,F70,B$6,B$14,B$13), ) -> 0 | V70: 0
L71: 0 | P71: =IF(B71>0,re(B$10,E71,F71,B$6,B$14,B$13), ) -> 0 | V71: 0
L72: 0 | P72: =IF(B72>0,re(B$10,E72,F72,B$6,B$14,B$13), ) -> 0 | V72: 0
L73: 0 | P73: =IF(B73>0,re(B$10,E73,F73,B$6,B$14,B$13), ) -> 0 | V73: 0
L74: 0 | P74: =IF(B74>0,re(B$10,E74,F74,B$6,B$14,B$13), ) -> 0 | V74: 0
L75: 0 | P75: =IF(B75>0,re(B$10,E75,F75,B$6,B$14,B$13), ) -> 0 | V75: 0
L76: 0 | P76: =IF(B76>0,re(B$10,E76,F76,B$6,B$14,B$13), ) -> 0 | V76: 0
L77: 0 | P77: =IF(B77>0,re(B$10,E77,F77,B$6,B$14,B$13), ) -> 0 | V77: 0
L78: 0 | P78: =IF(B78>0,re(B$10,E78,F78,B$6,B$14,B$13), ) -> 0 | V78: 0
L79: 0 | P79: =IF(B79>0,re(B$10,E79,F79,B$6,B$14,B$13), ) -> 0 | V79: 0
L80: 0 | P80: =IF(B80>0,re(B$10,E80,F80,B$6,B$14,B$13), ) -> 0 | V80: 0
L81: 0 | P81: =IF(B81>0,re(B$10,E81,F81,B$6,B$14,B$13), ) -> 0 | V81: 0
P83: =AVERAGE(P24:P81) -> 0.03004463584

Sheet Figures
D2: Figure 1 | L2: Figure 2
T3: =0.8*MIN(Data!B23:B81) -> 0.8 | U3: =Data!E21 -> 6.796
T4: =MAX(Data!B23:B81) -> 226 | U4: =U3 -> 6.796
T5: =T3 -> 0.8 | U5: =Data!F21 -> 7.738
T6: =T4 -> 226 | U6: =U5 -> 7.738
T8: =T4/4 -> 56.5 | U8: =IF(V8<V9,V8,NA()) ->  | V8: =IF(Data!B10>Data!E21,Data!B10,Data!E21-0.1) -> 6.696
T9: =T8 -> 56.5 | U9: =IF(V8<V9,V9,NA()) ->  | V9: =IF(Data!B11<Data!F21,Data!B11,Data!F21+0.1) -> 0
D21: Figure 3 | L21: Figure 4
B22: Qn (m3/d) | C22: sn (m) | T22: bn | U22: sn
B23: 0 | C23: 0 | T23: 0.85 | U23: 0
B24: 0.1 | C24: 0.1 | T24: 0 | U24: 0.16
B27: Drawdown Adjust. | T27: J-ratio | U27: =(U23-U24)/(T23-T24) -> -0.1882352941
B28: Dsn (m) | C28: 0.025
D41: Figure 5 | L41: Figure 6
D60: Figure 7 | L60: Figure 8
D79: Figure 9 | L79: Figure 10
T86: t (min) | U86: sn (m)
T87: 15 | U87: 0.085
T88: 15 | U88: 0

Sheet B&R
A1: Generalized Bouwer and Rice (1976)
A2: Well Designation: | C2: =IF(Data!B1 > 0,Data!B1,"") -> YYY
A3: Date: | C3: =IF(Data!B2 > 0,Data!B2,"") -> date | U3: y = A + B x
X4: B&R Type Curve
M5: Xi | N5: Yi | O5: X2 | P5: XY | Q5: (y-A-Bx)2 | R5: e | S5: count | T5: s/s0 | U5: SX | V5: =SUM(M6:M64) -> 1020 | X5: t (min) | Y5: s/s0 | AA5: Xi | AB5: Yi
M6: =IF(Data!B23>=D$9,Data!B23-D$9,0) -> 0 | N6: =IF(S6>0,LN(Data!J23),0) -> 0 | O6: =M6^2 -> 0 | P6: =M6*N6 -> 0 | Q6: =IF(M6>0,(N6-V$11-V$12*M6)^2,0) -> 0 | R6: =IF(M6>0,(N6-V$11-V$12*M6)/SQRT(V$14),0) -> 0 | S6: =IF(Data!B23>'B&R'!D$9,1,0) -> 0 | T6: =IF(S6=0,NA(),EXP(N6)/EXP(V$19)) ->  | U6: SY | V6: =SUM(N6:N64) -> -37.70063571 | X6: 0 | Y6: =EXP(-2*E$12*(X6/1440)*(-J$15)/(Data!V$23^2*LN('B&R'!J$12))) -> 1 | AA6: =IF(S6>0,M6,NA()) ->  | AB6: =IF(T6>0,N6,NA()) -> 
B7: Enter early time cut-off for least-squares model fit | J7: Le/re | M7: =IF(Data!B24>=D$9,Data!B24-D$9,0) -> 0 | N7: =IF(S7>0,LN(Data!J24),0) -> 0 | O7: =M7^2 -> 0 | P7: =M7*N7 -> 0 | Q7: =IF(M7>0,(N7-V$11-V$12*M7)^2,0) -> 0 | R7: =IF(M7>0,(N7-V$11-V$12*M7)/SQRT(V$14),0) -> 0 | S7: =IF(Data!B24>'B&R'!D$9,1,0) -> 0 | T7: =IF(S7=0,NA(),EXP(N7)/EXP(V$19)) ->  | U7: SX2 | V7: =SUM(O6:O64) -> 130682 | X7: =X6+1.05*(MAX(M$6:M$64)/30) -> 7.035 | Y7: =EXP(-2*E$12*(X7/1440)*(-J$15)/(Data!V$23^2*LN('B&R'!J$12))) -> 0.9573675292 | AA7: =IF(S7>0,M7,NA()) ->  | AB7: =IF(T7>0,N7,NA()) -> 
J8: =IF(Data!E21<Data!B10,(Data!F21-Data!B10)/Data!B13,(Data!F21-Data!E21)/Data!B13) -> 11.89265021 | M8: =IF(Data!B25>=D$9,Data!B25-D$9,0) -> 0 | N8: =IF(S8>0,LN(Data!J25),0) -> 0 | O8: 0 | P8: 0 | Q8: 0 | R8: 0 | S8: =IF(Data!B25>'B&R'!D$9,1,0) -> 0 | U8: SXY | V8: =SUM(P6:P64) -> -3476.935582 | X8: =X7+1.05*(MAX(M$6:M$64)/30) -> 14.07 | Y8: =EXP(-2*E$12*(X8/1440)*(-J$15)/(Data!V$23^2*LN('B&R'!J$12))) -> 0.9165525859
C9: Timecut | D9: 25 | E9: <- Enter or change value here | J9: C | M9: =IF(Data!B26>=D$9,Data!B26-D$9,0) -> 0 | N9: =IF(S9>0,LN(Data!J26),0) -> 0 | O9: 0 | P9: 0 | Q9: 0 | R9: 0 | S9: =IF(Data!B26>'B&R'!D$9,1,0) -> 0 | U9: N | V9: =SUM(S6:S64) -> 12 | X9: 21.105 | Y9: =EXP(-2*E$12*(X9/1440)*(-J$15)/(Data!V$23^2*LN('B&R'!J$12))) -> 0.8774776846
J10: =IF(J8<2000,0.792+0.03993*J8-0.00005743*J8^2+0.00000003858*J8^3-0.000000000009659*J8^4,13.5) -> 1.258815603 | M10: =IF(Data!B27>=D$9,Data!B27-D$9,0) -> 0 | N10: =IF(S10>0,LN(Data!J27),0) -> 0 | O10: 0 | P10: 0 | Q10: 0 | R10: 0 | S10: =IF(Data!B27>'B&R'!D$9,1,0) -> 0 | U10: D | V10: =V9*V7-V5^2 -> 527784 | X10: 28.14 | Y10: =EXP(-2*E$12*(X10/1440)*(-J$15)/(Data!V$23^2*LN('B&R'!J$12))) -> 0.8400686428
J11: R/re | M11: =IF(Data!B28>=D$9,Data!B28-D$9,0) -> 0 | N11: =IF(S11>0,LN(Data!J28),0) -> 0 | O11: 0 | P11: 0 | Q11: 0 | R11: 0 | S11: =IF(Data!B28>'B&R'!D$9,1,0) -> 0 | U11: A | V11: =(V7*V6-V5*V8)/V10 -> -2.615312671 | X11: 35.175 | Y11: =EXP(-2*E$12*(X11/1440)*(-J$15)/(Data!V$23^2*LN('B&R'!J$12))) -> 0.8042544409
B12: Model Results: | D12: Tn (m2/d) = | E12: =1440*V22*(-V12) -> 0.2701564807 | F12: +/- | G12: =1440*V22*SQRT(V15) -> 0.008436239367 | H12: m2/d | J12: =EXP(((1.1/LN(J8))+J10/J8)^-1) -> 6.158053777 | M12: =IF(Data!B29>=D$9,Data!B29-D$9,0) -> 0 | N12: =IF(S12>0,LN(Data!J29),0) -> 0 | O12: 0 | P12: 0 | Q12: 0 | R12: 0 | S12: =IF(Data!B29>'B&R'!D$9,1,0) -> 0 | U12: B | V12: =(V9*V8-V5*V6)/V10 -> -0.0061930232 | X12: 42.21 | Y12: =EXP(-2*E$12*(X12/1440)*(-J$15)/(Data!V$23^2*LN('B&R'!J$12))) -> 0.7699670869
M13: =IF(Data!B30>=D$9,Data!B30-D$9,0) -> 0 | N13: =IF(S13>0,LN(Data!J30),0) -> 0 | O13: 0 | P13: 0 | Q13: 0 | R13: 0 | S13: =IF(Data!B30>'B&R'!D$9,1,0) -> 0 | X13: 49.245 | Y13: =EXP(-2*E$12*(X13/1440)*(-J$15)/(Data!V$23^2*LN('B&R'!J$12))) -> 0.7371414876
J14: J-Ratio | M14: =IF(Data!B31>=D$9,Data!B31-D$9,0) -> 0 | N14: =IF(S14>0,LN(Data!J31),0) -> 0 | O14: 0 | P14: 0 | Q14: 0 | R14: 0 | S14: =IF(Data!B31>'B&R'!D$9,1,0) -> 0 | U14: sy2 | V14: =SUM(Q6:Q64)/(V9-2) -> 0.001644929901 | X14: 56.28 | Y14: =EXP(-2*E$12*(X14/1440)*(-J$15)/(Data!V$23^2*LN('B&R'!J$12))) -> 0.7057153246
J15: =Figures!U27 -> -0.1882352941 | M15: =IF(Data!B32>=D$9,Data!B32-D$9,0) -> 0 | N15: =IF(S15>0,LN(Data!J32),0) -> 0 | O15: 0 | P15: 0 | Q15: 0 | R15: 0 | S15: =IF(Data!B32>'B&R'!D$9,1,0) -> 0 | U15: sB2 | V15: =V9*V14/V10 -> 3.740007051e-08 | X15: 63.315 | Y15: =EXP(-2*E$12*(X15/1440)*(-J$15)/(Data!V$23^2*LN('B&R'!J$12))) -> 0.6756289367
M16: =IF(Data!B33>=D$9,Data!B33-D$9,0) -> 0 | N16: =IF(S16>0,LN(Data!J33),0) -> 0 | O16: 0 | P16: 0 | Q16: 0 | R16: 0 | S16: =IF(Data!B33>'B&R'!D$9,1,0) -> 0 | X16: 70.35 | Y16: =EXP(-2*E$12*(X16/1440)*(-J$15)/(Data!V$23^2*LN('B&R'!J$12))) -> 0.6468252057
M17: =IF(Data!B34>=D$9,Data!B34-D$9,0) -> 5 | N17: =IF(S17>0,LN(Data!J34),0) -> -2.63108916 | O17: 25 | P17: -13.1554458 | Q17: 0.0002306943806 | R17: 0.3744939537 | S17: =IF(Data!B34>'B&R'!D$9,1,0) -> 1 | T17: 0.9843473076 | X17: 77.385 | Y17: =EXP(-2*E$12*(X17/1440)*(-J$15)/(Data!V$23^2*LN('B&R'!J$12))) -> 0.619249449 | AA17: 5 | AB17: -2.63108916
M18: =IF(Data!B35>=D$9,Data!B35-D$9,0) -> 15 | N18: =IF(S18>0,LN(Data!J35),0) -> -2.673648774 | O18: 225 | P18: -40.10473162 | Q18: 0.001194341364 | R18: 0.852099949 | S18: =IF(Data!B35>'B&R'!D$9,1,0) -> 1 | T18: 0.9433328365 | U18: Plot Model Line | X18: 84.42 | Y18: =EXP(-2*E$12*(X18/1440)*(-J$15)/(Data!V$23^2*LN('B&R'!J$12))) -> 0.592849315 | AA18: 15 | AB18: -2.673648774
M19: =IF(Data!B36>=D$9,Data!B36-D$9,0) -> 27 | N19: =IF(S19>0,LN(Data!J36),0) -> -2.764620553 | O19: 729 | P19: -74.64475492 | Q19: 0.0003205440659 | R19: 0.4414384651 | S19: =IF(Data!B36>'B&R'!D$9,1,0) -> 1 | T19: 0.8613038942 | U19: 0 | V19: =V11 -> -2.615312671 | X19: 91.455 | Y19: =EXP(-2*E$12*(X19/1440)*(-J$15)/(Data!V$23^2*LN('B&R'!J$12))) -> 0.5675746839 | AA19: 27 | AB19: -2.764620553
J20: Coef. Of | M20: =IF(Data!B37>=D$9,Data!B37-D$9,0) -> 45 | N20: =IF(S20>0,LN(Data!J37),0) -> -2.918771232 | O20: 2025 | P20: -131.3447055 | Q20: 0.0006136776361 | R20: -0.6107963749 | S20: =IF(Data!B37>'B&R'!D$9,1,0) -> 1 | T20: 0.7382604807 | U20: =MAX(M6:M64) -> 201 | V20: =V11+V12*U20 -> -3.860110334 | X20: 98.49 | Y20: =EXP(-2*E$12*(X20/1440)*(-J$15)/(Data!V$23^2*LN('B&R'!J$12))) -> 0.5433775727 | AA20: 45 | AB20: -2.918771232
J21: Variation | M21: =IF(Data!B38>=D$9,Data!B38-D$9,0) -> 55 | N21: =IF(S21>0,LN(Data!J38),0) -> -2.975929646 | O21: 3025 | P21: -163.6761305 | Q21: 0.0004000279843 | R21: -0.493141429 | S21: =IF(Data!B38>'B&R'!D$9,1,0) -> 1 | T21: 0.6972460096 | X21: 105.525 | Y21: =EXP(-2*E$12*(X21/1440)*(-J$15)/(Data!V$23^2*LN('B&R'!J$12))) -> 0.5202120442 | AA21: 55 | AB21: -2.975929646
J22: =G12/E12 -> 0.03122723299 | M22: =IF(Data!B39>=D$9,Data!B39-D$9,0) -> 65 | N22: =IF(S22>0,LN(Data!J39),0) -> -3.036554268 | O22: 4225 | P22: -197.3760274 | Q22: 0.0003495063681 | R22: -0.4609500315 | S22: =IF(Data!B39>'B&R'!D$9,1,0) -> 1 | T22: 0.6562315384 | U22: factor | V22: =Data!V23^2*LN('B&R'!J12)/(2*(-Figures!U27)) -> 0.03029355149 | X22: 112.56 | Y22: =EXP(-2*E$12*(X22/1440)*(-J$15)/(Data!V$23^2*LN('B&R'!J$12))) -> 0.4980341194 | AA22: 65 | AB22: -3.036554268
M23: =IF(Data!B40>=D$9,Data!B40-D$9,0) -> 76 | N23: =IF(S23>0,LN(Data!J40),0) -> -3.101092789 | O23: 5776 | P23: -235.683052 | Q23: 0.0002283228387 | R23: -0.3725640792 | S23: =IF(Data!B40>'B&R'!D$9,1,0) -> 1 | T23: 0.6152170673 | X23: 119.595 | Y23: =EXP(-2*E$12*(X23/1440)*(-J$15)/(Data!V$23^2*LN('B&R'!J$12))) -> 0.4768016944 | AA23: 76 | AB23: -3.101092789
M24: =IF(Data!B41>=D$9,Data!B41-D$9,0) -> 95 | N24: =IF(S24>0,LN(Data!J41),0) -> -3.244193633 | O24: 9025 | P24: -308.1983951 | Q24: 0.001643796328 | R24: -0.9996553747 | S24: =IF(Data!B41>'B&R'!D$9,1,0) -> 1 | T24: 0.533188125 | X24: 126.63 | Y24: =EXP(-2*E$12*(X24/1440)*(-J$15)/(Data!V$23^2*LN('B&R'!J$12))) -> 0.45647446 | AA24: 95 | AB24: -3.244193633
M25: =IF(Data!B42>=D$9,Data!B42-D$9,0) -> 115 | N25: =IF(S25>0,LN(Data!J42),0) -> -3.324236341 | O25: 13225 | P25: -382.2871792 | Q25: 1.071906387e-05 | R25: 0.08072438252 | S25: =IF(Data!B42>'B&R'!D$9,1,0) -> 1 | T25: 0.4921736538 | U25: s0 (ft) | V25: =EXP(V19) -> 0.07314491485 | X25: 133.665 | Y25: =EXP(-2*E$12*(X25/1440)*(-J$15)/(Data!V$23^2*LN('B&R'!J$12))) -> 0.437013826 | AA25: 115 | AB25: -3.324236341
M26: =IF(Data!B43>=D$9,Data!B43-D$9,0) -> 145 | N26: =IF(S26>0,LN(Data!J43),0) -> -3.506557897 | O26: 21025 | P26: -508.4508951 | Q26: 4.546990144e-05 | R26: 0.1662602039 | S26: =IF(Data!B43>'B&R'!D$9,1,0) -> 1 | T26: 0.4101447115 | X26: 140.7 | Y26: =EXP(-2*E$12*(X26/1440)*(-J$15)/(Data!V$23^2*LN('B&R'!J$12))) -> 0.4183828468 | AA26: 145 | AB26: -3.506557897
M27: =IF(Data!B44>=D$9,Data!B44-D$9,0) -> 176 | N27: =IF(S27>0,LN(Data!J44),0) -> -3.611918413 | O27: 30976 | P27: -635.6976407 | Q27: 0.008717273614 | R27: 2.302060013 | S27: =IF(Data!B44>'B&R'!D$9,1,0) -> 1 | T27: 0.3691302404 | X27: 147.735 | Y27: =EXP(-2*E$12*(X27/1440)*(-J$15)/(Data!V$23^2*LN('B&R'!J$12))) -> 0.4005461523 | AA27: 176 | AB27: -3.611918413
M28: =IF(Data!B45>=D$9,Data!B45-D$9,0) -> 201 | N28: =IF(S28>0,LN(Data!J45),0) -> -3.912023005 | O28: 40401 | P28: -786.3166241 | Q28: 0.002694925466 | R28: -1.279969678 | S28: =IF(Data!B45>'B&R'!D$9,1,0) -> 1 | T28: 0.2734298077 | X28: 154.77 | Y28: =EXP(-2*E$12*(X28/1440)*(-J$15)/(Data!V$23^2*LN('B&R'!J$12))) -> 0.3834698801 | AA28: 201 | AB28: -3.912023005
M29: =IF(Data!B46>=D$9,Data!B46-D$9,0) -> 0 | N29: =IF(S29>0,LN(Data!J46),0) -> 0 | O29: 0 | P29: 0 | Q29: 0 | R29: 0 | S29: =IF(Data!B46>'B&R'!D$9,1,0) -> 0 | X29: 161.805 | Y29: =EXP(-2*E$12*(X29/1440)*(-J$15)/(Data!V$23^2*LN('B&R'!J$12))) -> 0.3671216117
M30: =IF(Data!B47>=D$9,Data!B47-D$9,0) -> 0 | N30: =IF(S30>0,LN(Data!J47),0) -> 0 | O30: 0 | P30: 0 | Q30: 0 | R30: 0 | S30: =IF(Data!B47>'B&R'!D$9,1,0) -> 0 | X30: 168.84 | Y30: =EXP(-2*E$12*(X30/1440)*(-J$15)/(Data!V$23^2*LN('B&R'!J$12))) -> 0.3514703103
M31: =IF(Data!B48>=D$9,Data!B48-D$9,0) -> 0 | N31: =IF(S31>0,LN(Data!J48),0) -> 0 | O31: 0 | P31: 0 | Q31: 0 | R31: 0 | S31: =IF(Data!B48>'B&R'!D$9,1,0) -> 0 | X31: 175.875 | Y31: =EXP(-2*E$12*(X31/1440)*(-J$15)/(Data!V$23^2*LN('B&R'!J$12))) -> 0.3364862625
M32: =IF(Data!B49>=D$9,Data!B49-D$9,0) -> 0 | N32: =IF(S32>0,LN(Data!J49),0) -> 0 | O32: 0 | P32: 0 | Q32: 0 | R32: 0 | S32: =IF(Data!B49>'B&R'!D$9,1,0) -> 0 | X32: 182.91 | Y32: =EXP(-2*E$12*(X32/1440)*(-J$15)/(Data!V$23^2*LN('B&R'!J$12))) -> 0.3221410218
M33: =IF(Data!B50>=D$9,Data!B50-D$9,0) -> 0 | N33: =IF(S33>0,LN(Data!J50),0) -> 0 | O33: 0 | P33: 0 | Q33: 0 | R33: 0 | S33: =IF(Data!B50>'B&R'!D$9,1,0) -> 0 | X33: 189.945 | Y33: =EXP(-2*E$12*(X33/1440)*(-J$15)/(Data!V$23^2*LN('B&R'!J$12))) -> 0.308407354
M34: =IF(Data!B51>=D$9,Data!B51-D$9,0) -> 0 | N34: =IF(S34>0,LN(Data!J51),0) -> 0 | O34: 0 | P34: 0 | Q34: 0 | R34: 0 | S34: =IF(Data!B51>'B&R'!D$9,1,0) -> 0 | X34: 196.98 | Y34: =EXP(-2*E$12*(X34/1440)*(-J$15)/(Data!V$23^2*LN('B&R'!J$12))) -> 0.2952591865
B35: C coefficient calculated from Eq. 6.5(c) of Butler, The Design, Performance, and | M35: =IF(Data!B52>=D$9,Data!B52-D$9,0) -> 0 | N35: =IF(S35>0,LN(Data!J52),0) -> 0 | O35: 0 | P35: 0 | Q35: 0 | R35: 0 | S35: =IF(Data!B52>'B&R'!D$9,1,0) -> 0 | X35: 204.015 | Y35: =EXP(-2*E$12*(X35/1440)*(-J$15)/(Data!V$23^2*LN('B&R'!J$12))) -> 0.2826715579
B36: Analysis of Slug Tests, CRC Press, 2000. | M36: =IF(Data!B53>=D$9,Data!B53-D$9,0) -> 0 | N36: =IF(S36>0,LN(Data!J53),0) -> 0 | O36: 0 | P36: 0 | Q36: 0 | R36: 0 | S36: =IF(Data!B53>'B&R'!D$9,1,0) -> 0 | X36: 211.05 | Y36: =EXP(-2*E$12*(X36/1440)*(-J$15)/(Data!V$23^2*LN('B&R'!J$12))) -> 0.2706205709
M37: =IF(Data!B54>=D$9,Data!B54-D$9,0) -> 0 | N37: =IF(S37>0,LN(Data!J54),0) -> 0 | O37: 0 | P37: 0 | Q37: 0 | R37: 0 | S37: =IF(Data!B54>'B&R'!D$9,1,0) -> 0
M38: =IF(Data!B55>=D$9,Data!B55-D$9,0) -> 0 | N38: =IF(S38>0,LN(Data!J55),0) -> 0 | O38: 0 | P38: 0 | Q38: 0 | R38: 0 | S38: =IF(Data!B55>'B&R'!D$9,1,0) -> 0
M39: =IF(Data!B56>=D$9,Data!B56-D$9,0) -> 0 | N39: =IF(S39>0,LN(Data!J56),0) -> 0 | O39: 0 | P39: 0 | Q39: 0 | R39: 0 | S39: =IF(Data!B56>'B&R'!D$9,1,0) -> 0 | X39: =TRUNC(100*E12)/100 -> 0.27
M40: =IF(Data!B57>=D$9,Data!B57-D$9,0) -> 0 | N40: =IF(S40>0,LN(Data!J57),0) -> 0 | O40: 0 | P40: 0 | Q40: 0 | R40: 0 | S40: =IF(Data!B57>'B&R'!D$9,1,0) -> 0 | X40: =X39 -> 0.27
M41: =IF(Data!B58>=D$9,Data!B58-D$9,0) -> 0 | N41: =IF(S41>0,LN(Data!J58),0) -> 0 | O41: 0 | P41: 0 | Q41: 0 | R41: 0 | S41: =IF(Data!B58>'B&R'!D$9,1,0) -> 0 | X41: =CONCATENATE(" T = ",X40," m2/d") -> T = 0.27 m2/d
M42: =IF(Data!B59>=D$9,Data!B59-D$9,0) -> 0 | N42: =IF(S42>0,LN(Data!J59),0) -> 0 | O42: 0 | P42: 0 | Q42: 0 | R42: 0 | S42: =IF(Data!B59>'B&R'!D$9,1,0) -> 0
M43: =IF(Data!B60>=D$9,Data!B60-D$9,0) -> 0 | N43: =IF(S43>0,LN(Data!J60),0) -> 0 | O43: 0 | P43: 0 | Q43: 0 | R43: 0 | S43: =IF(Data!B60>'B&R'!D$9,1,0) -> 0
M44: =IF(Data!B61>=D$9,Data!B61-D$9,0) -> 0 | N44: =IF(S44>0,LN(Data!J61),0) -> 0 | O44: 0 | P44: 0 | Q44: 0 | R44: 0 | S44: =IF(Data!B61>'B&R'!D$9,1,0) -> 0
M45: =IF(Data!B62>=D$9,Data!B62-D$9,0) -> 0 | N45: =IF(S45>0,LN(Data!J62),0) -> 0 | O45: 0 | P45: 0 | Q45: 0 | R45: 0 | S45: =IF(Data!B62>'B&R'!D$9,1,0) -> 0
M46: =IF(Data!B63>=D$9,Data!B63-D$9,0) -> 0 | N46: =IF(S46>0,LN(Data!J63),0) -> 0 | O46: 0 | P46: 0 | Q46: 0 | R46: 0 | S46: =IF(Data!B63>'B&R'!D$9,1,0) -> 0
M47: =IF(Data!B64>=D$9,Data!B64-D$9,0) -> 0 | N47: =IF(S47>0,LN(Data!J64),0) -> 0 | O47: 0 | P47: 0 | Q47: 0 | R47: 0 | S47: =IF(Data!B64>'B&R'!D$9,1,0) -> 0
M48: =IF(Data!B65>=D$9,Data!B65-D$9,0) -> 0 | N48: =IF(S48>0,LN(Data!J65),0) -> 0 | O48: =M48^2 -> 0 | P48: =M48*N48 -> 0 | Q48: 0 | R48: =IF(M48>0,(N48-V$11-V$12*M48)/SQRT(V$14),0) -> 0 | S48: =IF(Data!B65>'B&R'!D$9,1,0) -> 0 | T48: =IF(S48=0,NA(),EXP(N48)/EXP(V$19)) -> 
M49: =IF(Data!B66>=D$9,Data!B66-D$9,0) -> 0 | N49: =IF(S49>0,LN(Data!J66),0) -> 0 | O49: 0 | P49: 0 | Q49: 0 | R49: 0 | S49: =IF(Data!B66>'B&R'!D$9,1,0) -> 0
M50: =IF(Data!B67>=D$9,Data!B67-D$9,0) -> 0 | N50: =IF(S50>0,LN(Data!J67),0) -> 0 | O50: 0 | P50: 0 | Q50: 0 | R50: 0 | S50: =IF(Data!B67>'B&R'!D$9,1,0) -> 0
M51: =IF(Data!B68>=D$9,Data!B68-D$9,0) -> 0 | N51: =IF(S51>0,LN(Data!J68),0) -> 0 | O51: 0 | P51: 0 | Q51: 0 | R51: 0 | S51: =IF(Data!B68>'B&R'!D$9,1,0) -> 0
M52: =IF(Data!B69>=D$9,Data!B69-D$9,0) -> 0 | N52: =IF(S52>0,LN(Data!J69),0) -> 0 | O52: 0 | P52: 0 | Q52: 0 | R52: 0 | S52: =IF(Data!B69>'B&R'!D$9,1,0) -> 0
M53: =IF(Data!B70>=D$9,Data!B70-D$9,0) -> 0 | N53: =IF(S53>0,LN(Data!J70),0) -> 0 | O53: 0 | P53: 0 | Q53: 0 | R53: 0 | S53: =IF(Data!B70>'B&R'!D$9,1,0) -> 0
M54: =IF(Data!B71>=D$9,Data!B71-D$9,0) -> 0 | N54: =IF(S54>0,LN(Data!J71),0) -> 0 | O54: 0 | P54: 0 | Q54: 0 | R54: 0 | S54: =IF(Data!B71>'B&R'!D$9,1,0) -> 0
M55: =IF(Data!B72>=D$9,Data!B72-D$9,0) -> 0 | N55: =IF(S55>0,LN(Data!J72),0) -> 0 | O55: 0 | P55: 0 | Q55: 0 | R55: 0 | S55: =IF(Data!B72>'B&R'!D$9,1,0) -> 0
M56: =IF(Data!B73>=D$9,Data!B73-D$9,0) -> 0 | N56: =IF(S56>0,LN(Data!J73),0) -> 0 | O56: 0 | P56: 0 | Q56: 0 | R56: 0 | S56: =IF(Data!B73>'B&R'!D$9,1,0) -> 0
M57: =IF(Data!B74>=D$9,Data!B74-D$9,0) -> 0 | N57: =IF(S57>0,LN(Data!J74),0) -> 0 | O57: 0 | P57: 0 | Q57: 0 | R57: 0 | S57: =IF(Data!B74>'B&R'!D$9,1,0) -> 0
M58: =IF(Data!B75>=D$9,Data!B75-D$9,0) -> 0 | N58: =IF(S58>0,LN(Data!J75),0) -> 0 | O58: 0 | P58: 0 | Q58: 0 | R58: 0 | S58: =IF(Data!B75>'B&R'!D$9,1,0) -> 0
M59: =IF(Data!B76>=D$9,Data!B76-D$9,0) -> 0 | N59: =IF(S59>0,LN(Data!J76),0) -> 0 | O59: 0 | P59: 0 | Q59: 0 | R59: 0 | S59: =IF(Data!B76>'B&R'!D$9,1,0) -> 0
M60: =IF(Data!B77>=D$9,Data!B77-D$9,0) -> 0 | N60: =IF(S60>0,LN(Data!J77),0) -> 0 | O60: 0 | P60: 0 | Q60: 0 | R60: 0 | S60: =IF(Data!B77>'B&R'!D$9,1,0) -> 0
M61: =IF(Data!B78>=D$9,Data!B78-D$9,0) -> 0 | N61: =IF(S61>0,LN(Data!J78),0) -> 0 | O61: =M61^2 -> 0 | P61: =M61*N61 -> 0 | Q61: 0 | R61: =IF(M61>0,(N61-V$11-V$12*M61)/SQRT(V$14),0) -> 0 | S61: =IF(Data!B78>'B&R'!D$9,1,0) -> 0 | T61: =IF(S61=0,NA(),EXP(N61)/EXP(V$19)) -> 
M62: =IF(Data!B79>=D$9,Data!B79-D$9,0) -> 0 | N62: =IF(S62>0,LN(Data!J79),0) -> 0 | O62: 0 | P62: 0 | Q62: 0 | R62: 0 | S62: =IF(Data!B79>'B&R'!D$9,1,0) -> 0
M63: =IF(Data!B80>=D$9,Data!B80-D$9,0) -> 0 | N63: =IF(S63>0,LN(Data!J80),0) -> 0 | O63: 0 | P63: 0 | Q63: 0 | R63: 0 | S63: =IF(Data!B80>'B&R'!D$9,1,0) -> 0
M64: =IF(Data!B81>=D$9,Data!B81-D$9,0) -> 0 | N64: =IF(S64>0,LN(Data!J81),0) -> 0 | O64: 0 | P64: 0 | Q64: 0 | R64: 0 | S64: =IF(Data!B81>'B&R'!D$9,1,0) -> 0

Sheet C&J
A1: Cooper and Jacob (1946)
A2: Well Designation: | C2: =IF(Data!B1 > 0,Data!B1,"") -> YYY | W2: =E10 -> 15 | X2: =E9 -> 25 | Y2: 0
A3: Date: | C3: =IF(Data!B2 > 0,Data!B2,"") -> date | P3: 0 | Q3: =MAX(P9:Q58) -> 5.597740056 | W3: =W2 -> 15 | X3: =X2 -> 25 | Y3: =J50 -> 15
P4: 0 | Q4: =Q3 -> 5.597740056
X5: =MAX(T9:T66)+10 -> 223.5
N7: Index | O7: ti | P7: Vi (meas) | Q7: Vi (calc) | R7: SE | T7: Time | U7: Qn/sn | W7: Index | X7: Time | Y7: Qn/sn | Z7: A-Time
B8: Enter early time cut-off for least-squares model fit
C9: Timecut (min): | E9: 25 | F9: <- Enter or change values here | N9: 1 | O9: =IF(Data!L24>=E$9,Data!L24-E$10,0) -> 0 | P9: =IF(O9>0,1000*Data!M24*(Data!B24-Data!B23)/1440,0) -> 0 | Q9: =IF(O9>0,1000*(4*PI()*(E$16/1440)*Data!N24)*(Data!B24-Data!B23)/LN(0.56146/((Data!P24^2*'C&J'!E$15)/(4*('C&J'!E$16/1440)*O9))),0) -> 0 | R9: =(P9-Q9)^2 -> 0 | T9: =Data!L24 -> 1.25 | U9: =Data!M24/Data!N24 -> 11.92744744 | W9: 0 | X9: =2+(X$5-2)*W9/50 -> 2 | Y9: =4*PI()*E$18/LN(0.56146/(Data!V$23^2*'C&J'!E$15/(4*'C&J'!E$18*'C&J'!X9/1440))) -> 3.352834732 | Z9: =X9+E$10 -> 17
B10: Time Adjustment (min): | E10: 15 | N10: 2 | O10: =IF(Data!L25>=E$9,Data!L25-E$10,0) -> 0 | P10: =IF(O10>0,P9+1000*Data!M25*(Data!B25-Data!B24)/1440,0) -> 0 | Q10: =IF(O10>0,Q9+1000*(4*PI()*(E$16/1440)*Data!N25)*(Data!B25-Data!B24)/LN(0.56146/((Data!P25^2*'C&J'!E$15)/(4*('C&J'!E$16/1440)*O10))),0) -> 0 | R10: =(P10-Q10)^2 -> 0 | T10: =Data!L25 -> 1.75 | U10: =Data!M25/Data!N25 -> 11.4006657 | W10: 1 | X10: =2+(X$5-2)*W10/50 -> 6.43 | Y10: =4*PI()*E$18/LN(0.56146/(Data!V$23^2*'C&J'!E$15/(4*'C&J'!E$18*'C&J'!X10/1440))) -> 1.736916588 | Z10: =X10+E$10 -> 21.43
N11: 3 | O11: =IF(Data!L26>=E$9,Data!L26-E$10,0) -> 0 | P11: =IF(O11>0,P10+1000*Data!M26*(Data!B26-Data!B25)/1440,0) -> 0 | Q11: =IF(O11>0,Q10+1000*(4*PI()*(E$16/1440)*Data!N26)*(Data!B26-Data!B25)/LN(0.56146/((Data!P26^2*'C&J'!E$15)/(4*('C&J'!E$16/1440)*O11))),0) -> 0 | R11: 0 | T11: =Data!L26 -> 2.5 | U11: =Data!M26/Data!N26 -> 7.962625584 | W11: 2 | X11: 10.86 | Y11: =4*PI()*E$18/LN(0.56146/(Data!V$23^2*'C&J'!E$15/(4*'C&J'!E$18*'C&J'!X11/1440))) -> 1.428035401 | Z11: 25.86
B12: Trial Sn: | E12: d | F12: <-- Enter d for default or enter Sn value | N12: 4 | O12: =IF(Data!L27>=E$9,Data!L27-E$10,0) -> 0 | P12: =IF(O12>0,P11+1000*Data!M27*(Data!B27-Data!B26)/1440,0) -> 0 | Q12: =IF(O12>0,Q11+1000*(4*PI()*(E$16/1440)*Data!N27)*(Data!B27-Data!B26)/LN(0.56146/((Data!P27^2*'C&J'!E$15)/(4*('C&J'!E$16/1440)*O12))),0) -> 0 | R12: 0 | T12: =Data!L27 -> 3.5 | U12: =Data!M27/Data!N27 -> 3.960405673 | W12: 3 | X12: 15.29 | Y12: =4*PI()*E$18/LN(0.56146/(Data!V$23^2*'C&J'!E$15/(4*'C&J'!E$18*'C&J'!X12/1440))) -> 1.279509776 | Z12: 30.29
N13: 5 | O13: =IF(Data!L28>=E$9,Data!L28-E$10,0) -> 0 | P13: =IF(O13>0,P12+1000*Data!M28*(Data!B28-Data!B27)/1440,0) -> 0 | Q13: =IF(O13>0,Q12+1000*(4*PI()*(E$16/1440)*Data!N28)*(Data!B28-Data!B27)/LN(0.56146/((Data!P28^2*'C&J'!E$15)/(4*('C&J'!E$16/1440)*O13))),0) -> 0 | R13: 0 | T13: =Data!L28 -> 4.5 | U13: =Data!M28/Data!N28 -> 4.01644915 | W13: 4 | X13: 19.72 | Y13: =4*PI()*E$18/LN(0.56146/(Data!V$23^2*'C&J'!E$15/(4*'C&J'!E$18*'C&J'!X13/1440))) -> 1.187643715 | Z13: 34.72
B14: Root-Mean-Square Error: | E14: =SQRT(SUM(R9:R58)) -> 0.560015644 | F14: <-- Minimize this using "Solver" | N14: 6 | O14: =IF(Data!L29>=E$9,Data!L29-E$10,0) -> 0 | P14: =IF(O14>0,P13+1000*Data!M29*(Data!B29-Data!B28)/1440,0) -> 0 | Q14: =IF(O14>0,Q13+1000*(4*PI()*(E$16/1440)*Data!N29)*(Data!B29-Data!B28)/LN(0.56146/((Data!P29^2*'C&J'!E$15)/(4*('C&J'!E$16/1440)*O14))),0) -> 0 | R14: 0 | T14: =Data!L29 -> 6.25 | U14: =Data!M29/Data!N29 -> 3.355614659 | W14: 5 | X14: 24.15 | Y14: =4*PI()*E$18/LN(0.56146/(Data!V$23^2*'C&J'!E$15/(4*'C&J'!E$18*'C&J'!X14/1440))) -> 1.123401628 | Z14: 39.15
E15: =IF(E12="d",0.025*SQRT(E16)*3.28,E12) -> 0.04745523396 | F15: <-- Working Sn | N15: 7 | O15: =IF(Data!L30>=E$9,Data!L30-E$10,0) -> 0 | P15: =IF(O15>0,P14+1000*Data!M30*(Data!B30-Data!B29)/1440,0) -> 0 | Q15: =IF(O15>0,Q14+1000*(4*PI()*(E$16/1440)*Data!N30)*(Data!B30-Data!B29)/LN(0.56146/((Data!P30^2*'C&J'!E$15)/(4*('C&J'!E$16/1440)*O15))),0) -> 0 | R15: 0 | T15: =Data!L30 -> 9.75 | U15: =Data!M30/Data!N30 -> 5.16662852 | W15: 6 | X15: 28.58 | Y15: =4*PI()*E$18/LN(0.56146/(Data!V$23^2*'C&J'!E$15/(4*'C&J'!E$18*'C&J'!X15/1440))) -> 1.075070976 | Z15: 43.58
B16: Trial Tn (m2/d): | E16: 0.3349195762 | F16: <-- By changing Tn through "Solver" | N16: 8 | O16: =IF(Data!L31>=E$9,Data!L31-E$10,0) -> 0 | P16: =IF(O16>0,P15+1000*Data!M31*(Data!B31-Data!B30)/1440,0) -> 0 | Q16: =IF(O16>0,Q15+1000*(4*PI()*(E$16/1440)*Data!N31)*(Data!B31-Data!B30)/LN(0.56146/((Data!P31^2*'C&J'!E$15)/(4*('C&J'!E$16/1440)*O16))),0) -> 0 | R16: 0 | T16: =Data!L31 -> 13.5 | U16: =Data!M31/Data!N31 -> 0.3119000805 | W16: 7 | X16: 33.01 | Y16: =4*PI()*E$18/LN(0.56146/(Data!V$23^2*'C&J'!E$15/(4*'C&J'!E$18*'C&J'!X16/1440))) -> 1.036903009 | Z16: 48.01
G17: Add constraint Tn > 0.00001 | N17: 9 | O17: =IF(Data!L32>=E$9,Data!L32-E$10,0) -> 0 | P17: =IF(O17>0,P16+1000*Data!M32*(Data!B32-Data!B31)/1440,0) -> 0 | Q17: =IF(O17>0,Q16+1000*(4*PI()*(E$16/1440)*Data!N32)*(Data!B32-Data!B31)/LN(0.56146/((Data!P32^2*'C&J'!E$15)/(4*('C&J'!E$16/1440)*O17))),0) -> 0 | R17: 0 | T17: =Data!L32 -> 17.5 | U17: =Data!M32/Data!N32 -> 2.244229881 | W17: 8 | X17: 37.44 | Y17: =4*PI()*E$18/LN(0.56146/(Data!V$23^2*'C&J'!E$15/(4*'C&J'!E$18*'C&J'!X17/1440))) -> 1.005700988 | Z17: 52.44
B18: Model Result: | D18: Tn (m2/d) = | E18: =E16 -> 0.3349195762 | N18: 10 | O18: =IF(Data!L33>=E$9,Data!L33-E$10,0) -> 0 | P18: =IF(O18>0,P17+1000*Data!M33*(Data!B33-Data!B32)/1440,0) -> 0 | Q18: =IF(O18>0,Q17+1000*(4*PI()*(E$16/1440)*Data!N33)*(Data!B33-Data!B32)/LN(0.56146/((Data!P33^2*'C&J'!E$15)/(4*('C&J'!E$16/1440)*O18))),0) -> 0 | R18: 0 | T18: =Data!L33 -> 22.5 | U18: =Data!M33/Data!N33 -> 1.746640451 | W18: 9 | X18: 41.87 | Y18: =4*PI()*E$18/LN(0.56146/(Data!V$23^2*'C&J'!E$15/(4*'C&J'!E$18*'C&J'!X18/1440))) -> 0.9795256473 | Z18: 56.87
N19: 11 | O19: =IF(Data!L34>=E$9,Data!L34-E$10,0) -> 12.5 | P19: =IF(O19>0,P18+1000*Data!M34*(Data!B34-Data!B33)/1440,0) -> 0.2365242277 | Q19: =IF(O19>0,Q18+1000*(4*PI()*(E$16/1440)*Data!N34)*(Data!B34-Data!B33)/LN(0.56146/((Data!P34^2*'C&J'!E$15)/(4*('C&J'!E$16/1440)*O19))),0) -> 0.3478471102 | R19: 0.01239278417 | T19: =Data!L34 -> 27.5 | U19: =Data!M34/Data!N34 -> 0.9267888106 | W19: 10 | X19: 46.3 | Y19: =4*PI()*E$18/LN(0.56146/(Data!V$23^2*'C&J'!E$15/(4*'C&J'!E$18*'C&J'!X19/1440))) -> 0.957122367 | Z19: 61.3
N20: 12 | O20: =IF(Data!L35>=E$9,Data!L35-E$10,0) -> 20 | P20: =IF(O20>0,P19+1000*Data!M35*(Data!B35-Data!B34)/1440,0) -> 0.7884140923 | Q20: =IF(O20>0,Q19+1000*(4*PI()*(E$16/1440)*Data!N35)*(Data!B35-Data!B34)/LN(0.56146/((Data!P35^2*'C&J'!E$15)/(4*('C&J'!E$16/1440)*O20))),0) -> 0.9269935323 | R20: 0.01920426119 | T20: =Data!L35 -> 35 | U20: =Data!M35/Data!N35 -> 1.127264404 | W20: 11 | X20: 50.73 | Y20: =4*PI()*E$18/LN(0.56146/(Data!V$23^2*'C&J'!E$15/(4*'C&J'!E$18*'C&J'!X20/1440))) -> 0.9376381895 | Z20: 65.73
N21: 13 | O21: =IF(Data!L36>=E$9,Data!L36-E$10,0) -> 31 | P21: =IF(O21>0,P20+1000*Data!M36*(Data!B36-Data!B35)/1440,0) -> 1.320593605 | Q21: =IF(O21>0,Q20+1000*(4*PI()*(E$16/1440)*Data!N36)*(Data!B36-Data!B35)/LN(0.56146/((Data!P36^2*'C&J'!E$15)/(4*('C&J'!E$16/1440)*O21))),0) -> 1.506255885 | R21: 0.03447048226 | T21: =Data!L36 -> 46 | U21: =Data!M36/Data!N36 -> 0.9675991133 | W21: 12 | X21: 55.16 | Y21: =4*PI()*E$18/LN(0.56146/(Data!V$23^2*'C&J'!E$15/(4*'C&J'!E$18*'C&J'!X21/1440))) -> 0.920469908 | Z21: 70.16
N22: 14 | O22: =IF(Data!L37>=E$9,Data!L37-E$10,0) -> 46 | P22: =IF(O22>0,P21+1000*Data!M37*(Data!B37-Data!B36)/1440,0) -> 2.04987664 | Q22: =IF(O22>0,Q21+1000*(4*PI()*(E$16/1440)*Data!N37)*(Data!B37-Data!B36)/LN(0.56146/((Data!P37^2*'C&J'!E$15)/(4*('C&J'!E$16/1440)*O22))),0) -> 2.207187817 | R22: 0.02474680627 | T22: =Data!L37 -> 61 | U22: =Data!M37/Data!N37 -> 0.9973101339 | W22: 13 | X22: 59.59 | Y22: =4*PI()*E$18/LN(0.56146/(Data!V$23^2*'C&J'!E$15/(4*'C&J'!E$18*'C&J'!X22/1440))) -> 0.9051770154 | Z22: 74.59
N23: 15 | O23: =IF(Data!L38>=E$9,Data!L38-E$10,0) -> 60 | P23: =IF(O23>0,P22+1000*Data!M38*(Data!B38-Data!B37)/1440,0) -> 2.404662982 | Q23: =IF(O23>0,Q22+1000*(4*PI()*(E$16/1440)*Data!N38)*(Data!B38-Data!B37)/LN(0.56146/((Data!P38^2*'C&J'!E$15)/(4*('C&J'!E$16/1440)*O23))),0) -> 2.536714317 | R23: 0.01743755525 | T23: =Data!L38 -> 75 | U23: =Data!M38/Data!N38 -> 0.9731282511 | W23: 14 | X23: 64.02 | Y23: =4*PI()*E$18/LN(0.56146/(Data!V$23^2*'C&J'!E$15/(4*'C&J'!E$18*'C&J'!X23/1440))) -> 0.8914291239 | Z23: 79.02
N24: 16 | O24: =IF(Data!L39>=E$9,Data!L39-E$10,0) -> 70 | P24: =IF(O24>0,P23+1000*Data!M39*(Data!B39-Data!B38)/1440,0) -> 2.641187209 | Q24: =IF(O24>0,Q23+1000*(4*PI()*(E$16/1440)*Data!N39)*(Data!B39-Data!B38)/LN(0.56146/((Data!P39^2*'C&J'!E$15)/(4*('C&J'!E$16/1440)*O24))),0) -> 2.837454832 | R24: 0.03852097982 | T24: =Data!L39 -> 85 | U24: =Data!M39/Data!N39 -> 0.6880704806 | W24: 15 | X24: 68.45 | Y24: =4*PI()*E$18/LN(0.56146/(Data!V$23^2*'C&J'!E$15/(4*'C&J'!E$18*'C&J'!X24/1440))) -> 0.8789727965 | Z24: 83.45
N25: 17 | O25: =IF(Data!L40>=E$9,Data!L40-E$10,0) -> 80.5 | P25: =IF(O25>0,P24+1000*Data!M40*(Data!B40-Data!B39)/1440,0) -> 2.995973551 | Q25: =IF(O25>0,Q24+1000*(4*PI()*(E$16/1440)*Data!N40)*(Data!B40-Data!B39)/LN(0.56146/((Data!P40^2*'C&J'!E$15)/(4*('C&J'!E$16/1440)*O25))),0) -> 3.139446337 | R25: 0.02058444036 | T25: =Data!L40 -> 95.5 | U25: =Data!M40/Data!N40 -> 0.998811988 | W25: 16 | X25: 72.88 | Y25: =4*PI()*E$18/LN(0.56146/(Data!V$23^2*'C&J'!E$15/(4*'C&J'!E$18*'C&J'!X25/1440))) -> 0.8676098447 | Z25: 87.88
N26: 18 | O26: =IF(Data!L41>=E$9,Data!L41-E$10,0) -> 95.5 | P26: =IF(O26>0,P25+1000*Data!M41*(Data!B41-Data!B40)/1440,0) -> 3.488732359 | Q26: =IF(O26>0,Q25+1000*(4*PI()*(E$16/1440)*Data!N41)*(Data!B41-Data!B40)/LN(0.56146/((Data!P41^2*'C&J'!E$15)/(4*('C&J'!E$16/1440)*O26))),0) -> 3.59486899 | R26: 0.01126498446 | T26: =Data!L41 -> 110.5 | U26: =Data!M41/Data!N41 -> 0.889188826 | W26: 17 | X26: 77.31 | Y26: =4*PI()*E$18/LN(0.56146/(Data!V$23^2*'C&J'!E$15/(4*'C&J'!E$18*'C&J'!X26/1440))) -> 0.8571826817 | Z26: 92.31
N27: 19 | O27: =IF(Data!L42>=E$9,Data!L42-E$10,0) -> 115 | P27: =IF(O27>0,P26+1000*Data!M42*(Data!B42-Data!B41)/1440,0) -> 3.961780814 | Q27: =IF(O27>0,Q26+1000*(4*PI()*(E$16/1440)*Data!N42)*(Data!B42-Data!B41)/LN(0.56146/((Data!P42^2*'C&J'!E$15)/(4*('C&J'!E$16/1440)*O27))),0) -> 4.007912044 | R27: 0.002128090398 | T27: =Data!L42 -> 130 | U27: =Data!M42/Data!N42 -> 0.9082530344 | W27: 18 | X27: 81.74 | Y27: =4*PI()*E$18/LN(0.56146/(Data!V$23^2*'C&J'!E$15/(4*'C&J'!E$18*'C&J'!X27/1440))) -> 0.8475641679 | Z27: 96.74
N28: 20 | O28: =IF(Data!L43>=E$9,Data!L43-E$10,0) -> 140 | P28: =IF(O28>0,P27+1000*Data!M43*(Data!B43-Data!B42)/1440,0) -> 4.553091383 | Q28: =IF(O28>0,Q27+1000*(4*PI()*(E$16/1440)*Data!N43)*(Data!B43-Data!B42)/LN(0.56146/((Data!P43^2*'C&J'!E$15)/(4*('C&J'!E$16/1440)*O28))),0) -> 4.533642271 | R28: 0.0003782679783 | T28: =Data!L43 -> 155 | U28: =Data!M43/Data!N43 -> 0.8600881007 | W28: 19 | X28: 86.17 | Y28: =4*PI()*E$18/LN(0.56146/(Data!V$23^2*'C&J'!E$15/(4*'C&J'!E$18*'C&J'!X28/1440))) -> 0.8386504044 | Z28: 101.17
N29: 21 | O29: =IF(Data!L44>=E$9,Data!L44-E$10,0) -> 170.5 | P29: =IF(O29>0,P28+1000*Data!M44*(Data!B44-Data!B43)/1440,0) -> 5.164112305 | Q29: =IF(O29>0,Q28+1000*(4*PI()*(E$16/1440)*Data!N44)*(Data!B44-Data!B43)/LN(0.56146/((Data!P44^2*'C&J'!E$15)/(4*('C&J'!E$16/1440)*O29))),0) -> 4.986596151 | R29: 0.03151198503 | T29: =Data!L44 -> 185.5 | U29: =Data!M44/Data!N44 -> 0.9958914851 | W29: 20 | X29: 90.6 | Y29: =4*PI()*E$18/LN(0.56146/(Data!V$23^2*'C&J'!E$15/(4*'C&J'!E$18*'C&J'!X29/1440))) -> 0.8303555123 | Z29: 105.6
N30: 22 | O30: =IF(Data!L45>=E$9,Data!L45-E$10,0) -> 198.5 | P30: =IF(O30>0,P29+1000*Data!M45*(Data!B45-Data!B44)/1440,0) -> 5.597740056 | Q30: =IF(O30>0,Q29+1000*(4*PI()*(E$16/1440)*Data!N45)*(Data!B45-Data!B44)/LN(0.56146/((Data!P45^2*'C&J'!E$15)/(4*('C&J'!E$16/1440)*O30))),0) -> 5.279971454 | R30: 0.1009768844 | T30: =Data!L45 -> 213.5 | U30: =Data!M45/Data!N45 -> 1.062849296 | W30: 21 | X30: 95.03 | Y30: =4*PI()*E$18/LN(0.56146/(Data!V$23^2*'C&J'!E$15/(4*'C&J'!E$18*'C&J'!X30/1440))) -> 0.8226077816 | Z30: 110.03
N31: 23 | O31: =IF(Data!L46>=E$9,Data!L46-E$10,0) -> 0 | P31: =IF(O31>0,P30+1000*Data!M46*(Data!B46-Data!B45)/1440,0) -> 0 | Q31: =IF(O31>0,Q30+1000*(4*PI()*(E$16/1440)*Data!N46)*(Data!B46-Data!B45)/LN(0.56146/((Data!P46^2*'C&J'!E$15)/(4*('C&J'!E$16/1440)*O31))),0) -> 0 | R31: 0 | T31: =Data!L46 -> 0 | U31: =Data!M46/Data!N46 ->  | W31: 22 | X31: 99.46 | Y31: =4*PI()*E$18/LN(0.56146/(Data!V$23^2*'C&J'!E$15/(4*'C&J'!E$18*'C&J'!X31/1440))) -> 0.8153467831 | Z31: 114.46
N32: 24 | O32: =IF(Data!L47>=E$9,Data!L47-E$10,0) -> 0 | P32: =IF(O32>0,P31+1000*Data!M47*(Data!B47-Data!B46)/1440,0) -> 0 | Q32: =IF(O32>0,Q31+1000*(4*PI()*(E$16/1440)*Data!N47)*(Data!B47-Data!B46)/LN(0.56146/((Data!P47^2*'C&J'!E$15)/(4*('C&J'!E$16/1440)*O32))),0) -> 0 | R32: 0 | T32: =Data!L47 -> 0 | U32: =Data!M47/Data!N47 ->  | W32: 23 | X32: 103.89 | Y32: =4*PI()*E$18/LN(0.56146/(Data!V$23^2*'C&J'!E$15/(4*'C&J'!E$18*'C&J'!X32/1440))) -> 0.8085211707 | Z32: 118.89
N33: 25 | O33: =IF(Data!L48>=E$9,Data!L48-E$10,0) -> 0 | P33: =IF(O33>0,P32+1000*Data!M48*(Data!B48-Data!B47)/1440,0) -> 0 | Q33: =IF(O33>0,Q32+1000*(4*PI()*(E$16/1440)*Data!N48)*(Data!B48-Data!B47)/LN(0.56146/((Data!P48^2*'C&J'!E$15)/(4*('C&J'!E$16/1440)*O33))),0) -> 0 | R33: 0 | T33: =Data!L48 -> 0 | U33: =Data!M48/Data!N48 ->  | W33: 24 | X33: 108.32 | Y33: =4*PI()*E$18/LN(0.56146/(Data!V$23^2*'C&J'!E$15/(4*'C&J'!E$18*'C&J'!X33/1440))) -> 0.8020869872 | Z33: 123.32
N34: 26 | O34: =IF(Data!L49>=E$9,Data!L49-E$10,0) -> 0 | P34: =IF(O34>0,P33+1000*Data!M49*(Data!B49-Data!B48)/1440,0) -> 0 | Q34: =IF(O34>0,Q33+1000*(4*PI()*(E$16/1440)*Data!N49)*(Data!B49-Data!B48)/LN(0.56146/((Data!P49^2*'C&J'!E$15)/(4*('C&J'!E$16/1440)*O34))),0) -> 0 | R34: 0 | T34: =Data!L49 -> 0 | U34: =Data!M49/Data!N49 ->  | W34: 25 | X34: 112.75 | Y34: =4*PI()*E$18/LN(0.56146/(Data!V$23^2*'C&J'!E$15/(4*'C&J'!E$18*'C&J'!X34/1440))) -> 0.7960063421 | Z34: 127.75
N35: 27 | O35: =IF(Data!L50>=E$9,Data!L50-E$10,0) -> 0 | P35: =IF(O35>0,P34+1000*Data!M50*(Data!B50-Data!B49)/1440,0) -> 0 | Q35: =IF(O35>0,Q34+1000*(4*PI()*(E$16/1440)*Data!N50)*(Data!B50-Data!B49)/LN(0.56146/((Data!P50^2*'C&J'!E$15)/(4*('C&J'!E$16/1440)*O35))),0) -> 0 | R35: 0 | T35: =Data!L50 -> 0 | U35: =Data!M50/Data!N50 ->  | W35: 26 | X35: 117.18 | Y35: =4*PI()*E$18/LN(0.56146/(Data!V$23^2*'C&J'!E$15/(4*'C&J'!E$18*'C&J'!X35/1440))) -> 0.7902463688 | Z35: 132.18
N36: 28 | O36: =IF(Data!L51>=E$9,Data!L51-E$10,0) -> 0 | P36: =IF(O36>0,P35+1000*Data!M51*(Data!B51-Data!B50)/1440,0) -> 0 | Q36: =IF(O36>0,Q35+1000*(4*PI()*(E$16/1440)*Data!N51)*(Data!B51-Data!B50)/LN(0.56146/((Data!P51^2*'C&J'!E$15)/(4*('C&J'!E$16/1440)*O36))),0) -> 0 | R36: 0 | T36: =Data!L51 -> 0 | U36: =Data!M51/Data!N51 ->  | W36: 27 | X36: 121.61 | Y36: =4*PI()*E$18/LN(0.56146/(Data!V$23^2*'C&J'!E$15/(4*'C&J'!E$18*'C&J'!X36/1440))) -> 0.7847783932 | Z36: 136.61
N37: 29 | O37: =IF(Data!L52>=E$9,Data!L52-E$10,0) -> 0 | P37: =IF(O37>0,P36+1000*Data!M52*(Data!B52-Data!B51)/1440,0) -> 0 | Q37: =IF(O37>0,Q36+1000*(4*PI()*(E$16/1440)*Data!N52)*(Data!B52-Data!B51)/LN(0.56146/((Data!P52^2*'C&J'!E$15)/(4*('C&J'!E$16/1440)*O37))),0) -> 0 | R37: 0 | T37: =Data!L52 -> 0 | U37: =Data!M52/Data!N52 ->  | W37: 28 | X37: 126.04 | Y37: =4*PI()*E$18/LN(0.56146/(Data!V$23^2*'C&J'!E$15/(4*'C&J'!E$18*'C&J'!X37/1440))) -> 0.7795772655 | Z37: 141.04
N38: 30 | O38: =IF(Data!L53>=E$9,Data!L53-E$10,0) -> 0 | P38: =IF(O38>0,P37+1000*Data!M53*(Data!B53-Data!B52)/1440,0) -> 0 | Q38: =IF(O38>0,Q37+1000*(4*PI()*(E$16/1440)*Data!N53)*(Data!B53-Data!B52)/LN(0.56146/((Data!P53^2*'C&J'!E$15)/(4*('C&J'!E$16/1440)*O38))),0) -> 0 | R38: 0 | T38: =Data!L53 -> 0 | U38: =Data!M53/Data!N53 ->  | W38: 29 | X38: 130.47 | Y38: =4*PI()*E$18/LN(0.56146/(Data!V$23^2*'C&J'!E$15/(4*'C&J'!E$18*'C&J'!X38/1440))) -> 0.7746208176 | Z38: 145.47
N39: 31 | O39: =IF(Data!L54>=E$9,Data!L54-E$10,0) -> 0 | P39: =IF(O39>0,P38+1000*Data!M54*(Data!B54-Data!B53)/1440,0) -> 0 | Q39: =IF(O39>0,Q38+1000*(4*PI()*(E$16/1440)*Data!N54)*(Data!B54-Data!B53)/LN(0.56146/((Data!P54^2*'C&J'!E$15)/(4*('C&J'!E$16/1440)*O39))),0) -> 0 | R39: 0 | T39: =Data!L54 -> 0 | U39: =Data!M54/Data!N54 ->  | W39: 30 | X39: 134.9 | Y39: =4*PI()*E$18/LN(0.56146/(Data!V$23^2*'C&J'!E$15/(4*'C&J'!E$18*'C&J'!X39/1440))) -> 0.7698894209 | Z39: 149.9
N40: 32 | O40: =IF(Data!L55>=E$9,Data!L55-E$10,0) -> 0 | P40: =IF(O40>0,P39+1000*Data!M55*(Data!B55-Data!B54)/1440,0) -> 0 | Q40: =IF(O40>0,Q39+1000*(4*PI()*(E$16/1440)*Data!N55)*(Data!B55-Data!B54)/LN(0.56146/((Data!P55^2*'C&J'!E$15)/(4*('C&J'!E$16/1440)*O40))),0) -> 0 | R40: 0 | T40: =Data!L55 -> 0 | U40: =Data!M55/Data!N55 ->  | W40: 31 | X40: 139.33 | Y40: =4*PI()*E$18/LN(0.56146/(Data!V$23^2*'C&J'!E$15/(4*'C&J'!E$18*'C&J'!X40/1440))) -> 0.7653656204 | Z40: 154.33
N41: 33 | O41: =IF(Data!L56>=E$9,Data!L56-E$10,0) -> 0 | P41: =IF(O41>0,P40+1000*Data!M56*(Data!B56-Data!B55)/1440,0) -> 0 | Q41: =IF(O41>0,Q40+1000*(4*PI()*(E$16/1440)*Data!N56)*(Data!B56-Data!B55)/LN(0.56146/((Data!P56^2*'C&J'!E$15)/(4*('C&J'!E$16/1440)*O41))),0) -> 0 | R41: 0 | T41: =Data!L56 -> 0 | U41: =Data!M56/Data!N56 ->  | W41: 32 | X41: 143.76 | Y41: =4*PI()*E$18/LN(0.56146/(Data!V$23^2*'C&J'!E$15/(4*'C&J'!E$18*'C&J'!X41/1440))) -> 0.7610338327 | Z41: 158.76
N42: 34 | O42: =IF(Data!L57>=E$9,Data!L57-E$10,0) -> 0 | P42: =IF(O42>0,P41+1000*Data!M57*(Data!B57-Data!B56)/1440,0) -> 0 | Q42: =IF(O42>0,Q41+1000*(4*PI()*(E$16/1440)*Data!N57)*(Data!B57-Data!B56)/LN(0.56146/((Data!P57^2*'C&J'!E$15)/(4*('C&J'!E$16/1440)*O42))),0) -> 0 | R42: 0 | T42: =Data!L57 -> 0 | U42: =Data!M57/Data!N57 ->  | W42: 33 | X42: 148.19 | Y42: =4*PI()*E$18/LN(0.56146/(Data!V$23^2*'C&J'!E$15/(4*'C&J'!E$18*'C&J'!X42/1440))) -> 0.7568800935 | Z42: 163.19
N43: 35 | O43: =IF(Data!L58>=E$9,Data!L58-E$10,0) -> 0 | P43: =IF(O43>0,P42+1000*Data!M58*(Data!B58-Data!B57)/1440,0) -> 0 | Q43: =IF(O43>0,Q42+1000*(4*PI()*(E$16/1440)*Data!N58)*(Data!B58-Data!B57)/LN(0.56146/((Data!P58^2*'C&J'!E$15)/(4*('C&J'!E$16/1440)*O43))),0) -> 0 | R43: 0 | T43: =Data!L58 -> 0 | U43: =Data!M58/Data!N58 ->  | W43: 34 | X43: 152.62 | Y43: =4*PI()*E$18/LN(0.56146/(Data!V$23^2*'C&J'!E$15/(4*'C&J'!E$18*'C&J'!X43/1440))) -> 0.7528918457 | Z43: 167.62
N44: 36 | O44: =IF(Data!L59>=E$9,Data!L59-E$10,0) -> 0 | P44: =IF(O44>0,P43+1000*Data!M59*(Data!B59-Data!B58)/1440,0) -> 0 | Q44: =IF(O44>0,Q43+1000*(4*PI()*(E$16/1440)*Data!N59)*(Data!B59-Data!B58)/LN(0.56146/((Data!P59^2*'C&J'!E$15)/(4*('C&J'!E$16/1440)*O44))),0) -> 0 | R44: 0 | T44: =Data!L59 -> 0 | U44: =Data!M59/Data!N59 ->  | W44: 35 | X44: 157.05 | Y44: =4*PI()*E$18/LN(0.56146/(Data!V$23^2*'C&J'!E$15/(4*'C&J'!E$18*'C&J'!X44/1440))) -> 0.7490577608 | Z44: 172.05
N45: 37 | O45: =IF(Data!L60>=E$9,Data!L60-E$10,0) -> 0 | P45: =IF(O45>0,P44+1000*Data!M60*(Data!B60-Data!B59)/1440,0) -> 0 | Q45: =IF(O45>0,Q44+1000*(4*PI()*(E$16/1440)*Data!N60)*(Data!B60-Data!B59)/LN(0.56146/((Data!P60^2*'C&J'!E$15)/(4*('C&J'!E$16/1440)*O45))),0) -> 0 | R45: 0 | T45: =Data!L60 -> 0 | U45: =Data!M60/Data!N60 ->  | W45: 36 | X45: 161.48 | Y45: =4*PI()*E$18/LN(0.56146/(Data!V$23^2*'C&J'!E$15/(4*'C&J'!E$18*'C&J'!X45/1440))) -> 0.7453675872 | Z45: 176.48
N46: 38 | O46: =IF(Data!L61>=E$9,Data!L61-E$10,0) -> 0 | P46: =IF(O46>0,P45+1000*Data!M61*(Data!B61-Data!B60)/1440,0) -> 0 | Q46: =IF(O46>0,Q45+1000*(4*PI()*(E$16/1440)*Data!N61)*(Data!B61-Data!B60)/LN(0.56146/((Data!P61^2*'C&J'!E$15)/(4*('C&J'!E$16/1440)*O46))),0) -> 0 | R46: 0 | T46: =Data!L61 -> 0 | U46: =Data!M61/Data!N61 ->  | W46: 37 | X46: 165.91 | Y46: =4*PI()*E$18/LN(0.56146/(Data!V$23^2*'C&J'!E$15/(4*'C&J'!E$18*'C&J'!X46/1440))) -> 0.7418120208 | Z46: 180.91
N47: 39 | O47: =IF(Data!L62>=E$9,Data!L62-E$10,0) -> 0 | P47: =IF(O47>0,P46+1000*Data!M62*(Data!B62-Data!B61)/1440,0) -> 0 | Q47: =IF(O47>0,Q46+1000*(4*PI()*(E$16/1440)*Data!N62)*(Data!B62-Data!B61)/LN(0.56146/((Data!P62^2*'C&J'!E$15)/(4*('C&J'!E$16/1440)*O47))),0) -> 0 | R47: 0 | T47: =Data!L62 -> 0 | U47: =Data!M62/Data!N62 ->  | W47: 38 | X47: 170.34 | Y47: =4*PI()*E$18/LN(0.56146/(Data!V$23^2*'C&J'!E$15/(4*'C&J'!E$18*'C&J'!X47/1440))) -> 0.7383825945 | Z47: 185.34
N48: 40 | O48: =IF(Data!L63>=E$9,Data!L63-E$10,0) -> 0 | P48: =IF(O48>0,P47+1000*Data!M63*(Data!B63-Data!B62)/1440,0) -> 0 | Q48: =IF(O48>0,Q47+1000*(4*PI()*(E$16/1440)*Data!N63)*(Data!B63-Data!B62)/LN(0.56146/((Data!P63^2*'C&J'!E$15)/(4*('C&J'!E$16/1440)*O48))),0) -> 0 | R48: 0 | T48: =Data!L63 -> 0 | U48: =Data!M63/Data!N63 ->  | W48: 39 | X48: 174.77 | Y48: =4*PI()*E$18/LN(0.56146/(Data!V$23^2*'C&J'!E$15/(4*'C&J'!E$18*'C&J'!X48/1440))) -> 0.7350715828 | Z48: 189.77
J49: Height | N49: 41 | O49: =IF(Data!L64>=E$9,Data!L64-E$10,0) -> 0 | P49: =IF(O49>0,P48+1000*Data!M64*(Data!B64-Data!B63)/1440,0) -> 0 | Q49: =IF(O49>0,Q48+1000*(4*PI()*(E$16/1440)*Data!N64)*(Data!B64-Data!B63)/LN(0.56146/((Data!P64^2*'C&J'!E$15)/(4*('C&J'!E$16/1440)*O49))),0) -> 0 | R49: 0 | T49: =Data!L64 -> 0 | U49: =Data!M64/Data!N64 ->  | W49: 40 | X49: 179.2 | Y49: =4*PI()*E$18/LN(0.56146/(Data!V$23^2*'C&J'!E$15/(4*'C&J'!E$18*'C&J'!X49/1440))) -> 0.7318719196 | Z49: 194.2
J50: 15 | N50: 42 | O50: =IF(Data!L65>=E$9,Data!L65-E$10,0) -> 0 | P50: =IF(O50>0,P49+1000*Data!M65*(Data!B65-Data!B64)/1440,0) -> 0 | Q50: =IF(O50>0,Q49+1000*(4*PI()*(E$16/1440)*Data!N65)*(Data!B65-Data!B64)/LN(0.56146/((Data!P65^2*'C&J'!E$15)/(4*('C&J'!E$16/1440)*O50))),0) -> 0 | R50: 0 | T50: =Data!L65 -> 0 | U50: =Data!M65/Data!N65 ->  | W50: 41 | X50: 183.63 | Y50: =4*PI()*E$18/LN(0.56146/(Data!V$23^2*'C&J'!E$15/(4*'C&J'!E$18*'C&J'!X50/1440))) -> 0.7287771271 | Z50: 198.63
N51: 43 | O51: =IF(Data!L66>=E$9,Data!L66-E$10,0) -> 0 | P51: =IF(O51>0,P50+1000*Data!M66*(Data!B66-Data!B65)/1440,0) -> 0 | Q51: =IF(O51>0,Q50+1000*(4*PI()*(E$16/1440)*Data!N66)*(Data!B66-Data!B65)/LN(0.56146/((Data!P66^2*'C&J'!E$15)/(4*('C&J'!E$16/1440)*O51))),0) -> 0 | R51: 0 | T51: =Data!L66 -> 0 | U51: =Data!M66/Data!N66 ->  | W51: 42 | X51: 188.06 | Y51: =4*PI()*E$18/LN(0.56146/(Data!V$23^2*'C&J'!E$15/(4*'C&J'!E$18*'C&J'!X51/1440))) -> 0.7257812534 | Z51: 203.06
N52: 44 | O52: =IF(Data!L67>=E$9,Data!L67-E$10,0) -> 0 | P52: =IF(O52>0,P51+1000*Data!M67*(Data!B67-Data!B66)/1440,0) -> 0 | Q52: =IF(O52>0,Q51+1000*(4*PI()*(E$16/1440)*Data!N67)*(Data!B67-Data!B66)/LN(0.56146/((Data!P67^2*'C&J'!E$15)/(4*('C&J'!E$16/1440)*O52))),0) -> 0 | R52: 0 | T52: =Data!L67 -> 0 | U52: =Data!M67/Data!N67 ->  | W52: 43 | X52: 192.49 | Y52: =4*PI()*E$18/LN(0.56146/(Data!V$23^2*'C&J'!E$15/(4*'C&J'!E$18*'C&J'!X52/1440))) -> 0.7228788187 | Z52: 207.49
N53: 45 | O53: =IF(Data!L68>=E$9,Data!L68-E$10,0) -> 0 | P53: =IF(O53>0,P52+1000*Data!M68*(Data!B68-Data!B67)/1440,0) -> 0 | Q53: =IF(O53>0,Q52+1000*(4*PI()*(E$16/1440)*Data!N68)*(Data!B68-Data!B67)/LN(0.56146/((Data!P68^2*'C&J'!E$15)/(4*('C&J'!E$16/1440)*O53))),0) -> 0 | R53: 0 | T53: =Data!L68 -> 0 | U53: =Data!M68/Data!N68 ->  | W53: 44 | X53: 196.92 | Y53: =4*PI()*E$18/LN(0.56146/(Data!V$23^2*'C&J'!E$15/(4*'C&J'!E$18*'C&J'!X53/1440))) -> 0.7200647673 | Z53: 211.92
N54: 46 | O54: =IF(Data!L69>=E$9,Data!L69-E$10,0) -> 0 | P54: =IF(O54>0,P53+1000*Data!M69*(Data!B69-Data!B68)/1440,0) -> 0 | Q54: =IF(O54>0,Q53+1000*(4*PI()*(E$16/1440)*Data!N69)*(Data!B69-Data!B68)/LN(0.56146/((Data!P69^2*'C&J'!E$15)/(4*('C&J'!E$16/1440)*O54))),0) -> 0 | R54: 0 | T54: =Data!L69 -> 0 | U54: =Data!M69/Data!N69 ->  | W54: 45 | X54: 201.35 | Y54: =4*PI()*E$18/LN(0.56146/(Data!V$23^2*'C&J'!E$15/(4*'C&J'!E$18*'C&J'!X54/1440))) -> 0.7173344264 | Z54: 216.35
N55: 47 | O55: =IF(Data!L70>=E$9,Data!L70-E$10,0) -> 0 | P55: =IF(O55>0,P54+1000*Data!M70*(Data!B70-Data!B69)/1440,0) -> 0 | Q55: =IF(O55>0,Q54+1000*(4*PI()*(E$16/1440)*Data!N70)*(Data!B70-Data!B69)/LN(0.56146/((Data!P70^2*'C&J'!E$15)/(4*('C&J'!E$16/1440)*O55))),0) -> 0 | R55: 0 | T55: =Data!L70 -> 0 | U55: =Data!M70/Data!N70 ->  | W55: 46 | X55: 205.78 | Y55: =4*PI()*E$18/LN(0.56146/(Data!V$23^2*'C&J'!E$15/(4*'C&J'!E$18*'C&J'!X55/1440))) -> 0.7146834689 | Z55: 220.78
N56: 48 | O56: =IF(Data!L71>=E$9,Data!L71-E$10,0) -> 0 | P56: =IF(O56>0,P55+1000*Data!M71*(Data!B71-Data!B70)/1440,0) -> 0 | Q56: =IF(O56>0,Q55+1000*(4*PI()*(E$16/1440)*Data!N71)*(Data!B71-Data!B70)/LN(0.56146/((Data!P71^2*'C&J'!E$15)/(4*('C&J'!E$16/1440)*O56))),0) -> 0 | R56: 0 | T56: =Data!L71 -> 0 | U56: =Data!M71/Data!N71 ->  | W56: 47 | X56: 210.21 | Y56: =4*PI()*E$18/LN(0.56146/(Data!V$23^2*'C&J'!E$15/(4*'C&J'!E$18*'C&J'!X56/1440))) -> 0.7121078809 | Z56: 225.21
N57: 49 | O57: =IF(Data!L72>=E$9,Data!L72-E$10,0) -> 0 | P57: =IF(O57>0,P56+1000*Data!M72*(Data!B72-Data!B71)/1440,0) -> 0 | Q57: =IF(O57>0,Q56+1000*(4*PI()*(E$16/1440)*Data!N72)*(Data!B72-Data!B71)/LN(0.56146/((Data!P72^2*'C&J'!E$15)/(4*('C&J'!E$16/1440)*O57))),0) -> 0 | R57: 0 | T57: =Data!L72 -> 0 | U57: =Data!M72/Data!N72 ->  | W57: 48 | X57: 214.64 | Y57: =4*PI()*E$18/LN(0.56146/(Data!V$23^2*'C&J'!E$15/(4*'C&J'!E$18*'C&J'!X57/1440))) -> 0.7096039333 | Z57: 229.64
N58: 50 | O58: =IF(Data!L73>=E$9,Data!L73-E$10,0) -> 0 | P58: =IF(O58>0,P57+1000*Data!M73*(Data!B73-Data!B72)/1440,0) -> 0 | Q58: =IF(O58>0,Q57+1000*(4*PI()*(E$16/1440)*Data!N73)*(Data!B73-Data!B72)/LN(0.56146/((Data!P73^2*'C&J'!E$15)/(4*('C&J'!E$16/1440)*O58))),0) -> 0 | R58: 0 | T58: =Data!L73 -> 0 | U58: =Data!M73/Data!N73 ->  | W58: 49 | X58: 219.07 | Y58: =4*PI()*E$18/LN(0.56146/(Data!V$23^2*'C&J'!E$15/(4*'C&J'!E$18*'C&J'!X58/1440))) -> 0.7071681553 | Z58: 234.07
T59: =Data!L74 -> 0 | U59: =Data!M74/Data!N74 ->  | W59: 50 | X59: 223.5 | Y59: =4*PI()*E$18/LN(0.56146/(Data!V$23^2*'C&J'!E$15/(4*'C&J'!E$18*'C&J'!X59/1440))) -> 0.7047973123 | Z59: 238.5
T60: =Data!L75 -> 0 | U60: =Data!M75/Data!N75 -> 
T61: =Data!L76 -> 0 | U61: =Data!M76/Data!N76 -> 
T62: =Data!L77 -> 0 | U62: =Data!M77/Data!N77 -> 
T63: =Data!L78 -> 0 | U63: =Data!M78/Data!N78 -> 
T64: =Data!L79 -> 0 | U64: =Data!M79/Data!N79 -> 
T65: =Data!L80 -> 0 | U65: =Data!M80/Data!N80 -> 
T66: =Data!L81 -> 0 | U66: =Data!M81/Data!N81 -> 

Sheet CB&P
A1: Cooper, Bredehoeft and Papadopulos (1967)
A2: Well Designation: | C2: =IF(Data!B1 > 0,Data!B1,"") -> YYY | P2: e | Q2: 1e-06
A3: Date: | C3: =IF(Data!B2 > 0,Data!B2,"") -> date
B5: Enter early time cut-off for least-squares model fit
C6: Timecut (min): | E6: 20 | F6: <- Enter or change values here | N6: Count | O6: Time | P6: H/Ho | Q6: G (a,b,e) | R6: SE | X6: Time | Y6: H/Ho
B7: Initial Drawdown sn (m): | E7: 0.07 | O7: (min) | T7: Index | U7: Time (min) | V7: G( ) | X7: (min)
N8: =IF(O8>0,1,0) -> 0 | O8: =IF(Data!B23>E$6,Data!B23-E$6,0) -> 0 | P8: =IF(N8>0,Data!J23/'CB&P'!E$7,0) -> 0 | Q8: =IF(N8>0,G(E$14,((-J$20)*'CB&P'!E$13/1440)*'CB&P'!O8/Data!V$23^2,'CB&P'!Q$2),0) -> 0 | R8: =N8*(P8-Q8)^2 -> 0 | T8: 0 | U8: =EXP(LN(J$15)+(LN(J$16)-LN(J$15))*T8/100) -> 3 | V8: =G('CB&P'!E$14,((-J$20)*'CB&P'!E$13/1440)*'CB&P'!U8/Data!V$23^2,0.00001) -> 0.9291076207 | X8: =IF(N8>0,O8,NA()) ->  | Y8: =IF(N8>0,P8,NA()) -> 
B9: Trial Sn: | E9: d | F9: <-- Enter d for default | N9: =IF(O9>0,1,0) -> 0 | O9: =IF(Data!B24>E$6,Data!B24-E$6,0) -> 0 | P9: =IF(N9>0,Data!J24/'CB&P'!E$7,0) -> 0 | Q9: =IF(N9>0,G(E$14,((-J$20)*'CB&P'!E$13/1440)*'CB&P'!O9/Data!V$23^2,'CB&P'!Q$2),0) -> 0 | R9: =N9*(P9-Q9)^2 -> 0 | T9: 1 | U9: 3.133049962 | V9: =G('CB&P'!E$14,((-J$20)*'CB&P'!E$13/1440)*'CB&P'!U9/Data!V$23^2,0.00001) -> 0.9274069971 | X9: =IF(N9>0,O9,NA()) ->  | Y9: =IF(N9>0,P9,NA()) -> 
N10: 0 | O10: =IF(Data!B25>E$6,Data!B25-E$6,0) -> 0 | P10: =IF(N10>0,Data!J25/'CB&P'!E$7,0) -> 0 | Q10: =IF(N10>0,G(E$14,((-J$20)*'CB&P'!E$13/1440)*'CB&P'!O10/Data!V$23^2,'CB&P'!Q$2),0) -> 0 | R10: 0 | T10: 2 | U10: 3.272000688 | V10: =G('CB&P'!E$14,((-J$20)*'CB&P'!E$13/1440)*'CB&P'!U10/Data!V$23^2,0.00001) -> 0.9256558275
B11: Root-Mean-Square Error: | E11: =SQRT(SUM(R8:R48)) -> 0.4194058866 | F11: <-- Minimize this using "Solver" | N11: 0 | O11: =IF(Data!B26>E$6,Data!B26-E$6,0) -> 0 | P11: =IF(N11>0,Data!J26/'CB&P'!E$7,0) -> 0 | Q11: =IF(N11>0,G(E$14,((-J$20)*'CB&P'!E$13/1440)*'CB&P'!O11/Data!V$23^2,'CB&P'!Q$2),0) -> 0 | R11: 0 | T11: 3 | U11: 3.417113877 | V11: =G('CB&P'!E$14,((-J$20)*'CB&P'!E$13/1440)*'CB&P'!U11/Data!V$23^2,0.00001) -> 0.9238530348
N12: 0 | O12: =IF(Data!B27>E$6,Data!B27-E$6,0) -> 0 | P12: =IF(N12>0,Data!J27/'CB&P'!E$7,0) -> 0 | Q12: =IF(N12>0,G(E$14,((-J$20)*'CB&P'!E$13/1440)*'CB&P'!O12/Data!V$23^2,'CB&P'!Q$2),0) -> 0 | R12: 0 | T12: 4 | U12: 3.568662835 | V12: =G('CB&P'!E$14,((-J$20)*'CB&P'!E$13/1440)*'CB&P'!U12/Data!V$23^2,0.00001) -> 0.921997526
B13: Trial Tn (m2/d): | E13: 0.2658879103 | F13: <-- By changing Tn through "Solver" | N13: 0 | O13: =IF(Data!B28>E$6,Data!B28-E$6,0) -> 0 | P13: =IF(N13>0,Data!J28/'CB&P'!E$7,0) -> 0 | Q13: =IF(N13>0,G(E$14,((-J$20)*'CB&P'!E$13/1440)*'CB&P'!O13/Data!V$23^2,'CB&P'!Q$2),0) -> 0 | R13: 0 | T13: 5 | U13: 3.726932986 | V13: =G('CB&P'!E$14,((-J$20)*'CB&P'!E$13/1440)*'CB&P'!U13/Data!V$23^2,0.00001) -> 0.9200881907
E14: =IF(E9="d",0.025*SQRT(E13)*3.28,E9) -> 0.04228274245 | F14: <-- Working Sn | H14: Add constraint Tn > 0.00001 | N14: 0 | O14: =IF(Data!B29>E$6,Data!B29-E$6,0) -> 0 | P14: =IF(N14>0,Data!J29/'CB&P'!E$7,0) -> 0 | Q14: =IF(N14>0,G(E$14,((-J$20)*'CB&P'!E$13/1440)*'CB&P'!O14/Data!V$23^2,'CB&P'!Q$2),0) -> 0 | R14: 0 | T14: 6 | U14: 3.892222417 | V14: =G('CB&P'!E$14,((-J$20)*'CB&P'!E$13/1440)*'CB&P'!U14/Data!V$23^2,0.00001) -> 0.9181239006
B15: Model Result: | D15: Tn (m2/d) = | E15: =E13 -> 0.2658879103 | I15: Tmin | J15: 3 | N15: 0 | O15: =IF(Data!B30>E$6,Data!B30-E$6,0) -> 0 | P15: =IF(N15>0,Data!J30/'CB&P'!E$7,0) -> 0 | Q15: =IF(N15>0,G(E$14,((-J$20)*'CB&P'!E$13/1440)*'CB&P'!O15/Data!V$23^2,'CB&P'!Q$2),0) -> 0 | R15: 0 | T15: 7 | U15: 4.064842432 | V15: =G('CB&P'!E$14,((-J$20)*'CB&P'!E$13/1440)*'CB&P'!U15/Data!V$23^2,0.00001) -> 0.9161035075
I16: Tmax | J16: 230 | N16: 0 | O16: =IF(Data!B31>E$6,Data!B31-E$6,0) -> 0 | P16: =IF(N16>0,Data!J31/'CB&P'!E$7,0) -> 0 | Q16: =IF(N16>0,G(E$14,((-J$20)*'CB&P'!E$13/1440)*'CB&P'!O16/Data!V$23^2,'CB&P'!Q$2),0) -> 0 | R16: 0 | T16: 8 | U16: 4.245118142 | V16: =G('CB&P'!E$14,((-J$20)*'CB&P'!E$13/1440)*'CB&P'!U16/Data!V$23^2,0.00001) -> 0.9140258429
N17: 0 | O17: =IF(Data!B32>E$6,Data!B32-E$6,0) -> 0 | P17: =IF(N17>0,Data!J32/'CB&P'!E$7,0) -> 0 | Q17: =IF(N17>0,G(E$14,((-J$20)*'CB&P'!E$13/1440)*'CB&P'!O17/Data!V$23^2,'CB&P'!Q$2),0) -> 0 | R17: 0 | T17: 9 | U17: 4.433389078 | V17: =G('CB&P'!E$14,((-J$20)*'CB&P'!E$13/1440)*'CB&P'!U17/Data!V$23^2,0.00001) -> 0.9118897161
N18: 1 | O18: =IF(Data!B33>E$6,Data!B33-E$6,0) -> 5 | P18: =IF(N18>0,Data!J33/'CB&P'!E$7,0) -> 1.071428571 | Q18: =IF(N18>0,G(E$14,((-J$20)*'CB&P'!E$13/1440)*'CB&P'!O18/Data!V$23^2,'CB&P'!Q$2),0) -> 0.905653759 | R18: 0.02748128845 | T18: 10 | U18: 4.630009828 | V18: =G('CB&P'!E$14,((-J$20)*'CB&P'!E$13/1440)*'CB&P'!U18/Data!V$23^2,0.00001) -> 0.909693913 | X18: 5 | Y18: 1.071428571
J19: J-Ratio | N19: 1 | O19: =IF(Data!B34>E$6,Data!B34-E$6,0) -> 10 | P19: =IF(N19>0,Data!J34/'CB&P'!E$7,0) -> 1.028571429 | Q19: =IF(N19>0,G(E$14,((-J$20)*'CB&P'!E$13/1440)*'CB&P'!O19/Data!V$23^2,'CB&P'!Q$2),0) -> 0.8593169191 | R19: 0.02864708898 | T19: 11 | U19: 4.835350705 | V19: =G('CB&P'!E$14,((-J$20)*'CB&P'!E$13/1440)*'CB&P'!U19/Data!V$23^2,0.00001) -> 0.9074371953 | X19: 10 | Y19: 1.028571429
J20: =Figures!U27 -> -0.1882352941 | N20: 1 | O20: =IF(Data!B35>E$6,Data!B35-E$6,0) -> 20 | P20: =IF(N20>0,Data!J35/'CB&P'!E$7,0) -> 0.9857142857 | Q20: =IF(N20>0,G(E$14,((-J$20)*'CB&P'!E$13/1440)*'CB&P'!O20/Data!V$23^2,'CB&P'!Q$2),0) -> 0.7904057638 | R20: 0.03814541875 | T20: 12 | U20: 5.049798447 | V20: =G('CB&P'!E$14,((-J$20)*'CB&P'!E$13/1440)*'CB&P'!U20/Data!V$23^2,0.00001) -> 0.9051182985 | X20: 20 | Y20: 0.9857142857
N21: 1 | O21: =IF(Data!B36>E$6,Data!B36-E$6,0) -> 32 | P21: =IF(N21>0,Data!J36/'CB&P'!E$7,0) -> 0.9 | Q21: =IF(N21>0,G(E$14,((-J$20)*'CB&P'!E$13/1440)*'CB&P'!O21/Data!V$23^2,'CB&P'!Q$2),0) -> 0.7270267916 | R21: 0.02991973084 | T21: 13 | U21: 5.273756945 | V21: =G('CB&P'!E$14,((-J$20)*'CB&P'!E$13/1440)*'CB&P'!U21/Data!V$23^2,0.00001) -> 0.9027359313 | X21: 32 | Y21: 0.9
N22: 1 | O22: =IF(Data!B37>E$6,Data!B37-E$6,0) -> 50 | P22: =IF(N22>0,Data!J37/'CB&P'!E$7,0) -> 0.7714285714 | Q22: =IF(N22>0,G(E$14,((-J$20)*'CB&P'!E$13/1440)*'CB&P'!O22/Data!V$23^2,'CB&P'!Q$2),0) -> 0.6523792369 | R22: 0.01417274405 | T22: 14 | U22: 5.507647998 | V22: =G('CB&P'!E$14,((-J$20)*'CB&P'!E$13/1440)*'CB&P'!U22/Data!V$23^2,0.00001) -> 0.9002887739 | X22: 50 | Y22: 0.7714285714
N23: 1 | O23: =IF(Data!B38>E$6,Data!B38-E$6,0) -> 60 | P23: =IF(N23>0,Data!J38/'CB&P'!E$7,0) -> 0.7285714286 | Q23: =IF(N23>0,G(E$14,((-J$20)*'CB&P'!E$13/1440)*'CB&P'!O23/Data!V$23^2,'CB&P'!Q$2),0) -> 0.6177175685 | R23: 0.01228857829 | T23: 15 | U23: 5.751912118 | V23: =G('CB&P'!E$14,((-J$20)*'CB&P'!E$13/1440)*'CB&P'!U23/Data!V$23^2,0.00001) -> 0.8977754775 | X23: 60 | Y23: 0.7285714286
N24: 1 | O24: =IF(Data!B39>E$6,Data!B39-E$6,0) -> 70 | P24: =IF(N24>0,Data!J39/'CB&P'!E$7,0) -> 0.6857142857 | Q24: =IF(N24>0,G(E$14,((-J$20)*'CB&P'!E$13/1440)*'CB&P'!O24/Data!V$23^2,'CB&P'!Q$2),0) -> 0.5866042294 | R24: 0.009822803267 | T24: 16 | U24: 6.007009347 | V24: =G('CB&P'!E$14,((-J$20)*'CB&P'!E$13/1440)*'CB&P'!U24/Data!V$23^2,0.00001) -> 0.8951946626 | X24: 70 | Y24: 0.6857142857
N25: 1 | O25: =IF(Data!B40>E$6,Data!B40-E$6,0) -> 81 | P25: =IF(N25>0,Data!J40/'CB&P'!E$7,0) -> 0.6428571429 | Q25: =IF(N25>0,G(E$14,((-J$20)*'CB&P'!E$13/1440)*'CB&P'!O25/Data!V$23^2,'CB&P'!Q$2),0) -> 0.5557204384 | R25: 0.00759280527 | T25: 17 | U25: 6.273420136 | V25: =G('CB&P'!E$14,((-J$20)*'CB&P'!E$13/1440)*'CB&P'!U25/Data!V$23^2,0.00001) -> 0.8925449186 | X25: 81 | Y25: 0.6428571429
N26: 1 | O26: =IF(Data!B41>E$6,Data!B41-E$6,0) -> 100 | P26: =IF(N26>0,Data!J41/'CB&P'!E$7,0) -> 0.5571428571 | Q26: =IF(N26>0,G(E$14,((-J$20)*'CB&P'!E$13/1440)*'CB&P'!O26/Data!V$23^2,'CB&P'!Q$2),0) -> 0.5089710936 | R26: 0.002320518799 | T26: 18 | U26: 6.551646239 | V26: =G('CB&P'!E$14,((-J$20)*'CB&P'!E$13/1440)*'CB&P'!U26/Data!V$23^2,0.00001) -> 0.8898248028 | X26: 100 | Y26: 0.5571428571
N27: 1 | O27: =IF(Data!B42>E$6,Data!B42-E$6,0) -> 120 | P27: =IF(N27>0,Data!J42/'CB&P'!E$7,0) -> 0.5142857143 | Q27: =IF(N27>0,G(E$14,((-J$20)*'CB&P'!E$13/1440)*'CB&P'!O27/Data!V$23^2,'CB&P'!Q$2),0) -> 0.4668580176 | R27: =N27*(P27-Q27)^2 -> 0.00224938641 | T27: 19 | U27: 6.842211667 | V27: =G('CB&P'!E$14,((-J$20)*'CB&P'!E$13/1440)*'CB&P'!U27/Data!V$23^2,0.00001) -> 0.8870328396 | X27: 120 | Y27: 0.5142857143
N28: 1 | O28: =IF(Data!B43>E$6,Data!B43-E$6,0) -> 150 | P28: =IF(N28>0,Data!J43/'CB&P'!E$7,0) -> 0.4285714286 | Q28: =IF(N28>0,G(E$14,((-J$20)*'CB&P'!E$13/1440)*'CB&P'!O28/Data!V$23^2,'CB&P'!Q$2),0) -> 0.4139670284 | R28: =N28*(P28-Q28)^2 -> 0.0002132885042 | T28: 20 | U28: 7.145663668 | V28: =G('CB&P'!E$14,((-J$20)*'CB&P'!E$13/1440)*'CB&P'!U28/Data!V$23^2,0.00001) -> 0.8841675204 | X28: 150 | Y28: 0.4285714286
N29: 1 | O29: =IF(Data!B44>E$6,Data!B44-E$6,0) -> 181 | P29: =IF(N29>0,Data!J44/'CB&P'!E$7,0) -> 0.3857142857 | Q29: =IF(N29>0,G(E$14,((-J$20)*'CB&P'!E$13/1440)*'CB&P'!O29/Data!V$23^2,'CB&P'!Q$2),0) -> 0.3690550544 | R29: 0.0002775299865 | T29: 21 | U29: 7.462573761 | V29: =G('CB&P'!E$14,((-J$20)*'CB&P'!E$13/1440)*'CB&P'!U29/Data!V$23^2,0.00001) -> 0.881227303 | X29: 181 | Y29: 0.3857142857
N30: 1 | O30: =IF(Data!B45>E$6,Data!B45-E$6,0) -> 206 | P30: =IF(N30>0,Data!J45/'CB&P'!E$7,0) -> 0.2857142857 | Q30: =IF(N30>0,G(E$14,((-J$20)*'CB&P'!E$13/1440)*'CB&P'!O30/Data!V$23^2,'CB&P'!Q$2),0) -> 0.3383461785 | R30: 0.002770116138 | T30: 22 | U30: 7.793538813 | V30: =G('CB&P'!E$14,((-J$20)*'CB&P'!E$13/1440)*'CB&P'!U30/Data!V$23^2,0.00001) -> 0.8782106117 | X30: 206 | Y30: 0.2857142857
N31: 0 | O31: =IF(Data!B46>E$6,Data!B46-E$6,0) -> 0 | P31: =IF(N31>0,Data!J46/'CB&P'!E$7,0) -> 0 | Q31: =IF(N31>0,G(E$14,((-J$20)*'CB&P'!E$13/1440)*'CB&P'!O31/Data!V$23^2,'CB&P'!Q$2),0) -> 0 | R31: 0 | T31: 23 | U31: 8.139182161 | V31: =G('CB&P'!E$14,((-J$20)*'CB&P'!E$13/1440)*'CB&P'!U31/Data!V$23^2,0.00001) -> 0.8751158371
N32: 0 | O32: =IF(Data!B47>E$6,Data!B47-E$6,0) -> 0 | P32: =IF(N32>0,Data!J47/'CB&P'!E$7,0) -> 0 | Q32: =IF(N32>0,G(E$14,((-J$20)*'CB&P'!E$13/1440)*'CB&P'!O32/Data!V$23^2,'CB&P'!Q$2),0) -> 0 | R32: 0 | T32: 24 | U32: 8.500154787 | V32: =G('CB&P'!E$14,((-J$20)*'CB&P'!E$13/1440)*'CB&P'!U32/Data!V$23^2,0.00001) -> 0.8719413365
N33: 0 | O33: =IF(Data!B48>E$6,Data!B48-E$6,0) -> 0 | P33: =IF(N33>0,Data!J48/'CB&P'!E$7,0) -> 0 | Q33: =IF(N33>0,G(E$14,((-J$20)*'CB&P'!E$13/1440)*'CB&P'!O33/Data!V$23^2,'CB&P'!Q$2),0) -> 0 | R33: 0 | T33: 25 | U33: 8.877136544 | V33: =G('CB&P'!E$14,((-J$20)*'CB&P'!E$13/1440)*'CB&P'!U33/Data!V$23^2,0.00001) -> 0.8686854345
N34: 0 | O34: =IF(Data!B49>E$6,Data!B49-E$6,0) -> 0 | P34: =IF(N34>0,Data!J49/'CB&P'!E$7,0) -> 0 | Q34: =IF(N34>0,G(E$14,((-J$20)*'CB&P'!E$13/1440)*'CB&P'!O34/Data!V$23^2,'CB&P'!Q$2),0) -> 0 | R34: 0 | T34: 26 | U34: 9.270837437 | V34: =G('CB&P'!E$14,((-J$20)*'CB&P'!E$13/1440)*'CB&P'!U34/Data!V$23^2,0.00001) -> 0.8653464239
N35: 0 | O35: =IF(Data!B50>E$6,Data!B50-E$6,0) -> 0 | P35: =IF(N35>0,Data!J50/'CB&P'!E$7,0) -> 0 | Q35: =IF(N35>0,G(E$14,((-J$20)*'CB&P'!E$13/1440)*'CB&P'!O35/Data!V$23^2,'CB&P'!Q$2),0) -> 0 | R35: 0 | T35: 27 | U35: 9.68199896 | V35: =G('CB&P'!E$14,((-J$20)*'CB&P'!E$13/1440)*'CB&P'!U35/Data!V$23^2,0.00001) -> 0.8619225662
N36: 0 | O36: =IF(Data!B51>E$6,Data!B51-E$6,0) -> 0 | P36: =IF(N36>0,Data!J51/'CB&P'!E$7,0) -> 0 | Q36: =IF(N36>0,G(E$14,((-J$20)*'CB&P'!E$13/1440)*'CB&P'!O36/Data!V$23^2,'CB&P'!Q$2),0) -> 0 | R36: 0 | T36: 28 | U36: 10.11139549 | V36: =G('CB&P'!E$14,((-J$20)*'CB&P'!E$13/1440)*'CB&P'!U36/Data!V$23^2,0.00001) -> 0.8584120934
N37: 0 | O37: =IF(Data!B52>E$6,Data!B52-E$6,0) -> 0 | P37: =IF(N37>0,Data!J52/'CB&P'!E$7,0) -> 0 | Q37: =IF(N37>0,G(E$14,((-J$20)*'CB&P'!E$13/1440)*'CB&P'!O37/Data!V$23^2,'CB&P'!Q$2),0) -> 0 | R37: 0 | T37: 29 | U37: 10.55983575 | V37: =G('CB&P'!E$14,((-J$20)*'CB&P'!E$13/1440)*'CB&P'!U37/Data!V$23^2,0.00001) -> 0.8548132089
N38: 0 | O38: =IF(Data!B53>E$6,Data!B53-E$6,0) -> 0 | P38: =IF(N38>0,Data!J53/'CB&P'!E$7,0) -> 0 | Q38: =IF(N38>0,G(E$14,((-J$20)*'CB&P'!E$13/1440)*'CB&P'!O38/Data!V$23^2,'CB&P'!Q$2),0) -> 0 | R38: 0 | T38: 30 | U38: 11.02816434 | V38: =G('CB&P'!E$14,((-J$20)*'CB&P'!E$13/1440)*'CB&P'!U38/Data!V$23^2,0.00001) -> 0.8511240596
N39: 0 | O39: =IF(Data!B54>E$6,Data!B54-E$6,0) -> 0 | P39: =IF(N39>0,Data!J54/'CB&P'!E$7,0) -> 0 | Q39: =IF(N39>0,G(E$14,((-J$20)*'CB&P'!E$13/1440)*'CB&P'!O39/Data!V$23^2,'CB&P'!Q$2),0) -> 0 | R39: 0 | T39: 31 | U39: 11.51726328 | V39: =G('CB&P'!E$14,((-J$20)*'CB&P'!E$13/1440)*'CB&P'!U39/Data!V$23^2,0.00001) -> 0.8473428689
N40: 0 | O40: =IF(Data!B55>E$6,Data!B55-E$6,0) -> 0 | P40: =IF(N40>0,Data!J55/'CB&P'!E$7,0) -> 0 | Q40: =IF(N40>0,G(E$14,((-J$20)*'CB&P'!E$13/1440)*'CB&P'!O40/Data!V$23^2,'CB&P'!Q$2),0) -> 0 | R40: 0 | T40: 32 | U40: =EXP(LN(J$15)+(LN(J$16)-LN(J$15))*T40/100) -> 12.02805377 | V40: =G('CB&P'!E$14,((-J$20)*'CB&P'!E$13/1440)*'CB&P'!U40/Data!V$23^2,0.00001) -> 0.8434677227
N41: 0 | O41: =IF(Data!B56>E$6,Data!B56-E$6,0) -> 0 | P41: =IF(N41>0,Data!J56/'CB&P'!E$7,0) -> 0 | Q41: =IF(N41>0,G(E$14,((-J$20)*'CB&P'!E$13/1440)*'CB&P'!O41/Data!V$23^2,'CB&P'!Q$2),0) -> 0 | R41: 0 | T41: 33 | U41: 12.5614978 | V41: =G('CB&P'!E$14,((-J$20)*'CB&P'!E$13/1440)*'CB&P'!U41/Data!V$23^2,0.00001) -> 0.8394967323
N42: 0 | O42: =IF(Data!B57>E$6,Data!B57-E$6,0) -> 0 | P42: =IF(N42>0,Data!J57/'CB&P'!E$7,0) -> 0 | Q42: =IF(N42>0,G(E$14,((-J$20)*'CB&P'!E$13/1440)*'CB&P'!O42/Data!V$23^2,'CB&P'!Q$2),0) -> 0 | R42: 0 | T42: 34 | U42: 13.11860007 | V42: =G('CB&P'!E$14,((-J$20)*'CB&P'!E$13/1440)*'CB&P'!U42/Data!V$23^2,0.00001) -> 0.8354279918
N43: 0 | O43: =IF(Data!B58>E$6,Data!B58-E$6,0) -> 0 | P43: =IF(N43>0,Data!J58/'CB&P'!E$7,0) -> 0 | Q43: =IF(N43>0,G(E$14,((-J$20)*'CB&P'!E$13/1440)*'CB&P'!O43/Data!V$23^2,'CB&P'!Q$2),0) -> 0 | R43: 0 | T43: 35 | U43: 13.70040981 | V43: =G('CB&P'!E$14,((-J$20)*'CB&P'!E$13/1440)*'CB&P'!U43/Data!V$23^2,0.00001) -> 0.8312595808
N44: 0 | O44: =IF(Data!B59>E$6,Data!B59-E$6,0) -> 0 | P44: =IF(N44>0,Data!J59/'CB&P'!E$7,0) -> 0 | Q44: =IF(N44>0,G(E$14,((-J$20)*'CB&P'!E$13/1440)*'CB&P'!O44/Data!V$23^2,'CB&P'!Q$2),0) -> 0 | R44: 0 | T44: 36 | U44: 14.30802282 | V44: =G('CB&P'!E$14,((-J$20)*'CB&P'!E$13/1440)*'CB&P'!U44/Data!V$23^2,0.00001) -> 0.8269895683
N45: 0 | O45: =IF(Data!B60>E$6,Data!B60-E$6,0) -> 0 | P45: =IF(N45>0,Data!J60/'CB&P'!E$7,0) -> 0 | Q45: =IF(N45>0,G(E$14,((-J$20)*'CB&P'!E$13/1440)*'CB&P'!O45/Data!V$23^2,'CB&P'!Q$2),0) -> 0 | R45: 0 | T45: 37 | U45: 14.94258345 | V45: =G('CB&P'!E$14,((-J$20)*'CB&P'!E$13/1440)*'CB&P'!U45/Data!V$23^2,0.00001) -> 0.8226160156
N46: 0 | O46: =IF(Data!B61>E$6,Data!B61-E$6,0) -> 0 | P46: =IF(N46>0,Data!J61/'CB&P'!E$7,0) -> 0 | Q46: =IF(N46>0,G(E$14,((-J$20)*'CB&P'!E$13/1440)*'CB&P'!O46/Data!V$23^2,'CB&P'!Q$2),0) -> 0 | R46: 0 | T46: 38 | U46: 15.60528683 | V46: =G('CB&P'!E$14,((-J$20)*'CB&P'!E$13/1440)*'CB&P'!U46/Data!V$23^2,0.00001) -> 0.8181369809
N47: 0 | O47: =IF(Data!B62>E$6,Data!B62-E$6,0) -> 0 | P47: =IF(N47>0,Data!J62/'CB&P'!E$7,0) -> 0 | Q47: =IF(N47>0,G(E$14,((-J$20)*'CB&P'!E$13/1440)*'CB&P'!O47/Data!V$23^2,'CB&P'!Q$2),0) -> 0 | R47: 0 | T47: 39 | U47: 16.29738111 | V47: =G('CB&P'!E$14,((-J$20)*'CB&P'!E$13/1440)*'CB&P'!U47/Data!V$23^2,0.00001) -> 0.8135505229
N48: 0 | O48: =IF(Data!B63>E$6,Data!B63-E$6,0) -> 0 | P48: =IF(N48>0,Data!J63/'CB&P'!E$7,0) -> 0 | Q48: =IF(N48>0,G(E$14,((-J$20)*'CB&P'!E$13/1440)*'CB&P'!O48/Data!V$23^2,'CB&P'!Q$2),0) -> 0 | R48: 0 | T48: 40 | U48: 17.02016975 | V48: =G('CB&P'!E$14,((-J$20)*'CB&P'!E$13/1440)*'CB&P'!U48/Data!V$23^2,0.00001) -> 0.808854705
T49: 41 | U49: 17.77501407 | V49: =G('CB&P'!E$14,((-J$20)*'CB&P'!E$13/1440)*'CB&P'!U49/Data!V$23^2,0.00001) -> 0.8040476007
T50: 42 | U50: 18.56333571 | V50: =G('CB&P'!E$14,((-J$20)*'CB&P'!E$13/1440)*'CB&P'!U50/Data!V$23^2,0.00001) -> 0.7991272977
T51: 43 | U51: 19.38661942 | V51: =G('CB&P'!E$14,((-J$20)*'CB&P'!E$13/1440)*'CB&P'!U51/Data!V$23^2,0.00001) -> 0.7940919037
T52: 44 | U52: 20.24641574 | V52: =G('CB&P'!E$14,((-J$20)*'CB&P'!E$13/1440)*'CB&P'!U52/Data!V$23^2,0.00001) -> 0.7889395515
T53: 45 | U53: 21.14434403 | V53: =G('CB&P'!E$14,((-J$20)*'CB&P'!E$13/1440)*'CB&P'!U53/Data!V$23^2,0.00001) -> 0.7836684049
T54: 46 | U54: 22.08209542 | V54: =G('CB&P'!E$14,((-J$20)*'CB&P'!E$13/1440)*'CB&P'!U54/Data!V$23^2,0.00001) -> 0.7782766648
T55: 47 | U55: 23.06143607 | V55: =G('CB&P'!E$14,((-J$20)*'CB&P'!E$13/1440)*'CB&P'!U55/Data!V$23^2,0.00001) -> 0.7727625757
T56: 48 | U56: 24.08421047 | V56: =G('CB&P'!E$14,((-J$20)*'CB&P'!E$13/1440)*'CB&P'!U56/Data!V$23^2,0.00001) -> 0.7671244323
T57: 49 | U57: 25.1523449 | V57: =G('CB&P'!E$14,((-J$20)*'CB&P'!E$13/1440)*'CB&P'!U57/Data!V$23^2,0.00001) -> 0.7613605864
T58: 50 | U58: 26.26785107 | V58: =G('CB&P'!E$14,((-J$20)*'CB&P'!E$13/1440)*'CB&P'!U58/Data!V$23^2,0.00001) -> 0.7554694545
T59: 51 | U59: 27.43282994 | V59: =G('CB&P'!E$14,((-J$20)*'CB&P'!E$13/1440)*'CB&P'!U59/Data!V$23^2,0.00001) -> 0.7494495253
T60: 52 | U60: 28.6494756 | V60: =G('CB&P'!E$14,((-J$20)*'CB&P'!E$13/1440)*'CB&P'!U60/Data!V$23^2,0.00001) -> 0.743299368
T61: 53 | U61: 29.92007948 | V61: =G('CB&P'!E$14,((-J$20)*'CB&P'!E$13/1440)*'CB&P'!U61/Data!V$23^2,0.00001) -> 0.7370176403
T62: 54 | U62: 31.24703462 | V62: =G('CB&P'!E$14,((-J$20)*'CB&P'!E$13/1440)*'CB&P'!U62/Data!V$23^2,0.00001) -> 0.7306030973
T63: 55 | U63: 32.63284021 | V63: =G('CB&P'!E$14,((-J$20)*'CB&P'!E$13/1440)*'CB&P'!U63/Data!V$23^2,0.00001) -> 0.7240546007
T64: 56 | U64: 34.08010626 | V64: =G('CB&P'!E$14,((-J$20)*'CB&P'!E$13/1440)*'CB&P'!U64/Data!V$23^2,0.00001) -> 0.7173711276
T65: 57 | U65: 35.59155854 | V65: =G('CB&P'!E$14,((-J$20)*'CB&P'!E$13/1440)*'CB&P'!U65/Data!V$23^2,0.00001) -> 0.7105517809
T66: 58 | U66: 37.17004372 | V66: =G('CB&P'!E$14,((-J$20)*'CB&P'!E$13/1440)*'CB&P'!U66/Data!V$23^2,0.00001) -> 0.703595799
T67: 59 | U67: 38.81853468 | V67: =G('CB&P'!E$14,((-J$20)*'CB&P'!E$13/1440)*'CB&P'!U67/Data!V$23^2,0.00001) -> 0.6965025658
T68: 60 | U68: 40.54013621 | V68: =G('CB&P'!E$14,((-J$20)*'CB&P'!E$13/1440)*'CB&P'!U68/Data!V$23^2,0.00001) -> 0.6892716218
T69: 61 | U69: 42.33809073 | V69: =G('CB&P'!E$14,((-J$20)*'CB&P'!E$13/1440)*'CB&P'!U69/Data!V$23^2,0.00001) -> 0.6819026747
T70: 62 | U70: 44.21578452 | V70: =G('CB&P'!E$14,((-J$20)*'CB&P'!E$13/1440)*'CB&P'!U70/Data!V$23^2,0.00001) -> 0.6743956104
T71: 63 | U71: 46.17675401 | V71: =G('CB&P'!E$14,((-J$20)*'CB&P'!E$13/1440)*'CB&P'!U71/Data!V$23^2,0.00001) -> 0.6667505047
T72: 64 | U72: =EXP(LN(J$15)+(LN(J$16)-LN(J$15))*T72/100) -> 48.22469246 | V72: =G('CB&P'!E$14,((-J$20)*'CB&P'!E$13/1440)*'CB&P'!U72/Data!V$23^2,0.00001) -> 0.6589676343
T73: 65 | U73: 50.36345696 | V73: =G('CB&P'!E$14,((-J$20)*'CB&P'!E$13/1440)*'CB&P'!U73/Data!V$23^2,0.00001) -> 0.6510474887
T74: 66 | U74: 52.59707564 | V74: =G('CB&P'!E$14,((-J$20)*'CB&P'!E$13/1440)*'CB&P'!U74/Data!V$23^2,0.00001) -> 0.6429907819
T75: 67 | U75: 54.92975528 | V75: =G('CB&P'!E$14,((-J$20)*'CB&P'!E$13/1440)*'CB&P'!U75/Data!V$23^2,0.00001) -> 0.6347984641
T76: 68 | U76: 57.36588923 | V76: =G('CB&P'!E$14,((-J$20)*'CB&P'!E$13/1440)*'CB&P'!U76/Data!V$23^2,0.00001) -> 0.6264717188
T77: 69 | U77: 59.91006569 | V77: =G('CB&P'!E$14,((-J$20)*'CB&P'!E$13/1440)*'CB&P'!U77/Data!V$23^2,0.00001) -> 0.6180120398
T78: 70 | U78: 62.56707635 | V78: =G('CB&P'!E$14,((-J$20)*'CB&P'!E$13/1440)*'CB&P'!U78/Data!V$23^2,0.00001) -> 0.6094211324
T79: 71 | U79: 65.34192539 | V79: =G('CB&P'!E$14,((-J$20)*'CB&P'!E$13/1440)*'CB&P'!U79/Data!V$23^2,0.00001) -> 0.6007010097
T80: 72 | U80: 68.23983896 | V80: =G('CB&P'!E$14,((-J$20)*'CB&P'!E$13/1440)*'CB&P'!U80/Data!V$23^2,0.00001) -> 0.5918539775
T81: 73 | U81: 71.26627495 | V81: =G('CB&P'!E$14,((-J$20)*'CB&P'!E$13/1440)*'CB&P'!U81/Data!V$23^2,0.00001) -> 0.5828826462
T82: 74 | U82: 74.42693335 | V82: =G('CB&P'!E$14,((-J$20)*'CB&P'!E$13/1440)*'CB&P'!U82/Data!V$23^2,0.00001) -> 0.5737899403
T83: 75 | U83: 77.7277669 | V83: =G('CB&P'!E$14,((-J$20)*'CB&P'!E$13/1440)*'CB&P'!U83/Data!V$23^2,0.00001) -> 0.5645791086
T84: 76 | U84: 81.17499238 | V84: =G('CB&P'!E$14,((-J$20)*'CB&P'!E$13/1440)*'CB&P'!U84/Data!V$23^2,0.00001) -> 0.5552537328
T85: 77 | U85: 84.77510226 | V85: =G('CB&P'!E$14,((-J$20)*'CB&P'!E$13/1440)*'CB&P'!U85/Data!V$23^2,0.00001) -> 0.5458177364
T86: 78 | U86: 88.53487697 | V86: =G('CB&P'!E$14,((-J$20)*'CB&P'!E$13/1440)*'CB&P'!U86/Data!V$23^2,0.00001) -> 0.5362753914
T87: 79 | U87: 92.46139765 | V87: =G('CB&P'!E$14,((-J$20)*'CB&P'!E$13/1440)*'CB&P'!U87/Data!V$23^2,0.00001) -> 0.5266313247
T88: 80 | U88: 96.56205946 | V88: =G('CB&P'!E$14,((-J$20)*'CB&P'!E$13/1440)*'CB&P'!U88/Data!V$23^2,0.00001) -> 0.5168905237
T89: 81 | U89: 100.8445856 | V89: =G('CB&P'!E$14,((-J$20)*'CB&P'!E$13/1440)*'CB&P'!U89/Data!V$23^2,0.00001) -> 0.5070583398
T90: 82 | U90: 105.3170417 | V90: =G('CB&P'!E$14,((-J$20)*'CB&P'!E$13/1440)*'CB&P'!U90/Data!V$23^2,0.00001) -> 0.497140491
T91: 83 | U91: 109.9878511 | V91: =G('CB&P'!E$14,((-J$20)*'CB&P'!E$13/1440)*'CB&P'!U91/Data!V$23^2,0.00001) -> 0.4871430631
T92: 84 | U92: 114.8658109 | V92: =G('CB&P'!E$14,((-J$20)*'CB&P'!E$13/1440)*'CB&P'!U92/Data!V$23^2,0.00001) -> 0.4770725085
T93: 85 | U93: 119.9601082 | V93: =G('CB&P'!E$14,((-J$20)*'CB&P'!E$13/1440)*'CB&P'!U93/Data!V$23^2,0.00001) -> 0.4669356444
T94: 86 | U94: 125.2803375 | V94: =G('CB&P'!E$14,((-J$20)*'CB&P'!E$13/1440)*'CB&P'!U94/Data!V$23^2,0.00001) -> 0.456739648
T95: 87 | U95: 130.8365189 | V95: =G('CB&P'!E$14,((-J$20)*'CB&P'!E$13/1440)*'CB&P'!U95/Data!V$23^2,0.00001) -> 0.4464920502
T96: 88 | U96: 136.6391168 | V96: =G('CB&P'!E$14,((-J$20)*'CB&P'!E$13/1440)*'CB&P'!U96/Data!V$23^2,0.00001) -> 0.4362009983
T97: 89 | U97: 142.6990599 | V97: =G('CB&P'!E$14,((-J$20)*'CB&P'!E$13/1440)*'CB&P'!U97/Data!V$23^2,0.00001) -> 0.4258741569
T98: 90 | U98: 149.0277614 | V98: =G('CB&P'!E$14,((-J$20)*'CB&P'!E$13/1440)*'CB&P'!U98/Data!V$23^2,0.00001) -> 0.4155203313
T99: 91 | U99: 155.6371408 | V99: =G('CB&P'!E$14,((-J$20)*'CB&P'!E$13/1440)*'CB&P'!U99/Data!V$23^2,0.00001) -> 0.4051483579
T100: 92 | U100: 162.539646 | V100: =G('CB&P'!E$14,((-J$20)*'CB&P'!E$13/1440)*'CB&P'!U100/Data!V$23^2,0.00001) -> 0.3947673605
T101: 93 | U101: 169.7482772 | V101: =G('CB&P'!E$14,((-J$20)*'CB&P'!E$13/1440)*'CB&P'!U101/Data!V$23^2,0.00001) -> 0.3843867292
T102: 94 | U102: 177.2766112 | V102: =G('CB&P'!E$14,((-J$20)*'CB&P'!E$13/1440)*'CB&P'!U102/Data!V$23^2,0.00001) -> 0.3740160972
T103: 95 | U103: 185.1388266 | V103: =G('CB&P'!E$14,((-J$20)*'CB&P'!E$13/1440)*'CB&P'!U103/Data!V$23^2,0.00001) -> 0.3636653146
T104: 96 | U104: =EXP(LN(J$15)+(LN(J$16)-LN(J$15))*T104/100) -> 193.3497313 | V104: =G('CB&P'!E$14,((-J$20)*'CB&P'!E$13/1440)*'CB&P'!U104/Data!V$23^2,0.00001) -> 0.3533444202
T105: 97 | U105: 201.9247894 | V105: =G('CB&P'!E$14,((-J$20)*'CB&P'!E$13/1440)*'CB&P'!U105/Data!V$23^2,0.00001) -> 0.3430636097
T106: 98 | U106: 210.8801512 | V106: =G('CB&P'!E$14,((-J$20)*'CB&P'!E$13/1440)*'CB&P'!U106/Data!V$23^2,0.00001) -> 0.3328332027
T107: 99 | U107: 220.2326833 | V107: =G('CB&P'!E$14,((-J$20)*'CB&P'!E$13/1440)*'CB&P'!U107/Data!V$23^2,0.00001) -> 0.3226636062
T108: 100 | U108: 230 | V108: =G('CB&P'!E$14,((-J$20)*'CB&P'!E$13/1440)*'CB&P'!U108/Data!V$23^2,0.00001) -> 0.3125652766

Sheet B&R Type Curve
A1: Bouwer and Rice Short Term LNAPL Mobility Test Type Curves
A2: =CONCATENATE("B&R Type Curves: Casing Rad. (m) = ",Data!B6," ; Borehole Rad. (m) = ",Data!B7) -> B&R Type Curves: Casing Rad. (m) = 0.052 ; Borehole Rad. (m) = 0.152
D5: Enter these values
A6: Type Curve ID | B6: Type Curve Name | C6: Notes | D6: Max Time (min) | E6: Transmissivity (ft2/day)
A7: 1 | B7: =CONCATENATE("T=",E7," m2/day") -> T=2 m2/day | D7: 50 | E7: 2 | G7: J-Ratio | K7: Type Curve 1 | N7: Type Curve 2 | Q7: Type Curve 3 | T7: Type Curve 4 | W7: Type Curve 5 | Z7: Type Curve 6 | AC7: Type Curve 7
A8: 2 | B8: T=1.25 m2/day | D8: 100 | E8: 1.25 | G8: =Figures!U27 -> -0.1882352941 | H8: <-- If uncertain use | L8: T (ft2/day) | O8: T (ft2/day) | R8: T (ft2/day) | U8: T (ft2/day) | X8: T (ft2/day) | AA8: T (ft2/day) | AD8: T (ft2/day)
A9: 3 | B9: T=0.8 m2/day | D9: 150 | E9: 0.8 | H9: =-(1-Data!B9) -> -0.22 | L9: =E7 -> 2 | O9: =E8 -> 1.25 | R9: =E9 -> 0.8 | U9: =E10 -> 0.4 | X9: =E11 -> 0.2 | AA9: =E12 -> 0.1 | AD9: =E13 -> 0.05
A10: 4 | B10: T=0.4 m2/day | D10: 200 | E10: 0.4
A11: 5 | B11: T=0.2 m2/day | D11: 200 | E11: 0.2 | K11: t (min) | L11: s(t)/s0 | N11: t (min) | O11: s(t)/s0 | Q11: t (min) | R11: s(t)/s0 | T11: t (min) | U11: s(t)/s0 | W11: t (min) | X11: s(t)/s0 | Z11: t (min) | AA11: s(t)/s0 | AC11: t (min) | AD11: s(t)/s0
A12: 6 | B12: T=0.1 m2/day | D12: 200 | E12: 0.1 | K12: 0 | L12: =EXP(-(2*L$9*(K12/1440)*(-G$8)/(Data!B$13^2*LN('B&R'!$J$12)))) -> 1 | N12: 0 | O12: =EXP(-(2*O$9*(N12/1440)*(-G$8))/(Data!B$13^2*LN('B&R'!$J$12))) -> 1 | Q12: 0 | R12: =EXP(-(2*R$9*(Q12/1440)*(-G$8))/(Data!B$13^2*LN('B&R'!$J$12))) -> 1 | T12: 0 | U12: =EXP(-(2*U$9*(T12/1440)*(-G$8))/(Data!B$13^2*LN('B&R'!J$12))) -> 1 | W12: 0 | X12: =EXP(-(2*X$9*(W12/1440)*(-G$8))/(Data!B$13^2*LN('B&R'!$J$12))) -> 1 | Z12: 0 | AA12: =EXP(-(2*AA$9*(Z12/1440)*(-G$8))/(Data!B$13^2*LN('B&R'!$J$12))) -> 1 | AC12: 0 | AD12: =EXP(-(2*AD$9*(AC12/1440)*(-G$8))/(Data!B$13^2*LN('B&R'!$J$12))) -> 1
A13: 7 | B13: T=0.05 m2/day | D13: 200 | E13: 0.05 | K13: =(K$42-K$12)/30+K12 -> 1.666666667 | L13: =EXP(-(2*L$9*(K13/1440)*(-G$8)/(Data!B$13^2*LN('B&R'!$J$12)))) -> 0.9264337042 | N13: =(N$42-N$12)/30+N12 -> 3.333333333 | O13: =EXP(-(2*O$9*(N13/1440)*(-G$8))/(Data!B$13^2*LN('B&R'!$J$12))) -> 0.9089038294 | Q13: =(Q$42-Q$12)/30+Q12 -> 5 | R13: =EXP(-(2*R$9*(Q13/1440)*(-G$8))/(Data!B$13^2*LN('B&R'!$J$12))) -> 0.9123830656 | T13: =(T$42-T$12)/30+T12 -> 6.666666667 | U13: =EXP(-(2*U$9*(T13/1440)*(-G$8))/(Data!B$13^2*LN('B&R'!J$12))) -> 0.9407007218 | W13: =(W$42-W$12)/30+W12 -> 6.666666667 | X13: =EXP(-(2*X$9*(W13/1440)*(-G$8))/(Data!B$13^2*LN('B&R'!$J$12))) -> 0.9698972738 | Z13: =(Z$42-Z$12)/30+Z12 -> 6.666666667 | AA13: =EXP(-(2*AA$9*(Z13/1440)*(-G$8))/(Data!B$13^2*LN('B&R'!$J$12))) -> 0.9848336275 | AC13: =(AC$42-AC$12)/30+AC12 -> 6.666666667 | AD13: =EXP(-(2*AD$9*(AC13/1440)*(-G$8))/(Data!B$13^2*LN('B&R'!$J$12))) -> 0.9923878413
K14: 3.333333333 | L14: =EXP(-(2*L$9*(K14/1440)*(-G$8)/(Data!B$13^2*LN('B&R'!$J$12)))) -> 0.8582794083 | N14: 6.666666667 | O14: =EXP(-(2*O$9*(N14/1440)*(-G$8))/(Data!B$13^2*LN('B&R'!$J$12))) -> 0.8261061712 | Q14: 10 | R14: =EXP(-(2*R$9*(Q14/1440)*(-G$8))/(Data!B$13^2*LN('B&R'!$J$12))) -> 0.8324428583 | T14: 13.33333333 | U14: =EXP(-(2*U$9*(T14/1440)*(-G$8))/(Data!B$13^2*LN('B&R'!J$12))) -> 0.884917848 | W14: 13.33333333 | X14: =EXP(-(2*X$9*(W14/1440)*(-G$8))/(Data!B$13^2*LN('B&R'!$J$12))) -> 0.9407007218 | Z14: 13.33333333 | AA14: =EXP(-(2*AA$9*(Z14/1440)*(-G$8))/(Data!B$13^2*LN('B&R'!$J$12))) -> 0.9698972738 | AC14: 13.33333333 | AD14: =EXP(-(2*AD$9*(AC14/1440)*(-G$8))/(Data!B$13^2*LN('B&R'!$J$12))) -> 0.9848336275
K15: 5 | L15: =EXP(-(2*L$9*(K15/1440)*(-G$8)/(Data!B$13^2*LN('B&R'!$J$12)))) -> 0.7951389715 | N15: 10 | O15: =EXP(-(2*O$9*(N15/1440)*(-G$8))/(Data!B$13^2*LN('B&R'!$J$12))) -> 0.7508510625 | Q15: 15 | R15: =EXP(-(2*R$9*(Q15/1440)*(-G$8))/(Data!B$13^2*LN('B&R'!$J$12))) -> 0.759506767 | T15: 20 | U15: =EXP(-(2*U$9*(T15/1440)*(-G$8))/(Data!B$13^2*LN('B&R'!J$12))) -> 0.8324428583 | W15: 20 | X15: =EXP(-(2*X$9*(W15/1440)*(-G$8))/(Data!B$13^2*LN('B&R'!$J$12))) -> 0.9123830656 | Z15: 20 | AA15: =EXP(-(2*AA$9*(Z15/1440)*(-G$8))/(Data!B$13^2*LN('B&R'!$J$12))) -> 0.9551874505 | AC15: 20 | AD15: =EXP(-(2*AD$9*(AC15/1440)*(-G$8))/(Data!B$13^2*LN('B&R'!$J$12))) -> 0.9773369176
K16: 6.666666667 | L16: =EXP(-(2*L$9*(K16/1440)*(-G$8)/(Data!B$13^2*LN('B&R'!$J$12)))) -> 0.7366435428 | N16: 13.33333333 | O16: =EXP(-(2*O$9*(N16/1440)*(-G$8))/(Data!B$13^2*LN('B&R'!$J$12))) -> 0.682451406 | Q16: 20 | R16: =EXP(-(2*R$9*(Q16/1440)*(-G$8))/(Data!B$13^2*LN('B&R'!$J$12))) -> 0.6929611124 | T16: 26.66666667 | U16: =EXP(-(2*U$9*(T16/1440)*(-G$8))/(Data!B$13^2*LN('B&R'!J$12))) -> 0.7830795977 | W16: 26.66666667 | X16: =EXP(-(2*X$9*(W16/1440)*(-G$8))/(Data!B$13^2*LN('B&R'!$J$12))) -> 0.884917848 | Z16: 26.66666667 | AA16: =EXP(-(2*AA$9*(Z16/1440)*(-G$8))/(Data!B$13^2*LN('B&R'!$J$12))) -> 0.9407007218 | AC16: 26.66666667 | AD16: =EXP(-(2*AD$9*(AC16/1440)*(-G$8))/(Data!B$13^2*LN('B&R'!$J$12))) -> 0.9698972738
K17: 8.333333333 | L17: =EXP(-(2*L$9*(K17/1440)*(-G$8)/(Data!B$13^2*LN('B&R'!$J$12)))) -> 0.682451406 | N17: 16.66666667 | O17: =EXP(-(2*O$9*(N17/1440)*(-G$8))/(Data!B$13^2*LN('B&R'!$J$12))) -> 0.6202826964 | Q17: 25 | R17: =EXP(-(2*R$9*(Q17/1440)*(-G$8))/(Data!B$13^2*LN('B&R'!$J$12))) -> 0.6322459841 | T17: 33.33333333 | U17: =EXP(-(2*U$9*(T17/1440)*(-G$8))/(Data!B$13^2*LN('B&R'!J$12))) -> 0.7366435428 | W17: 33.33333333 | X17: =EXP(-(2*X$9*(W17/1440)*(-G$8))/(Data!B$13^2*LN('B&R'!$J$12))) -> 0.8582794083 | Z17: 33.33333333 | AA17: =EXP(-(2*AA$9*(Z17/1440)*(-G$8))/(Data!B$13^2*LN('B&R'!$J$12))) -> 0.9264337042 | AC17: 33.33333333 | AD17: =EXP(-(2*AD$9*(AC17/1440)*(-G$8))/(Data!B$13^2*LN('B&R'!$J$12))) -> 0.9625142618
K18: 10 | L18: =EXP(-(2*L$9*(K18/1440)*(-G$8)/(Data!B$13^2*LN('B&R'!$J$12)))) -> 0.6322459841 | N18: 20 | O18: =EXP(-(2*O$9*(N18/1440)*(-G$8))/(Data!B$13^2*LN('B&R'!$J$12))) -> 0.5637773181 | Q18: 30 | R18: =EXP(-(2*R$9*(Q18/1440)*(-G$8))/(Data!B$13^2*LN('B&R'!$J$12))) -> 0.5768505291 | T18: 40 | U18: =EXP(-(2*U$9*(T18/1440)*(-G$8))/(Data!B$13^2*LN('B&R'!J$12))) -> 0.6929611124 | W18: 40 | X18: =EXP(-(2*X$9*(W18/1440)*(-G$8))/(Data!B$13^2*LN('B&R'!$J$12))) -> 0.8324428583 | Z18: 40 | AA18: =EXP(-(2*AA$9*(Z18/1440)*(-G$8))/(Data!B$13^2*LN('B&R'!$J$12))) -> 0.9123830656 | AC18: 40 | AD18: =EXP(-(2*AD$9*(AC18/1440)*(-G$8))/(Data!B$13^2*LN('B&R'!$J$12))) -> 0.9551874505
K19: 11.66666667 | L19: =EXP(-(2*L$9*(K19/1440)*(-G$8)/(Data!B$13^2*LN('B&R'!$J$12)))) -> 0.585733989 | N19: 23.33333333 | O19: =EXP(-(2*O$9*(N19/1440)*(-G$8))/(Data!B$13^2*LN('B&R'!$J$12))) -> 0.5124193633 | Q19: 35 | R19: =EXP(-(2*R$9*(Q19/1440)*(-G$8))/(Data!B$13^2*LN('B&R'!$J$12))) -> 0.5263086542 | T19: 46.66666667 | U19: =EXP(-(2*U$9*(T19/1440)*(-G$8))/(Data!B$13^2*LN('B&R'!J$12))) -> 0.6518690186 | W19: 46.66666667 | X19: =EXP(-(2*X$9*(W19/1440)*(-G$8))/(Data!B$13^2*LN('B&R'!$J$12))) -> 0.8073840589 | Z19: 46.66666667 | AA19: =EXP(-(2*AA$9*(Z19/1440)*(-G$8))/(Data!B$13^2*LN('B&R'!$J$12))) -> 0.8985455241 | AC19: 46.66666667 | AD19: =EXP(-(2*AD$9*(AC19/1440)*(-G$8))/(Data!B$13^2*LN('B&R'!$J$12))) -> 0.947916412
K20: 13.33333333 | L20: =EXP(-(2*L$9*(K20/1440)*(-G$8)/(Data!B$13^2*LN('B&R'!$J$12)))) -> 0.5426437091 | N20: 26.66666667 | O20: =EXP(-(2*O$9*(N20/1440)*(-G$8))/(Data!B$13^2*LN('B&R'!$J$12))) -> 0.4657399216 | Q20: 40 | R20: =EXP(-(2*R$9*(Q20/1440)*(-G$8))/(Data!B$13^2*LN('B&R'!$J$12))) -> 0.4801951033 | T20: 53.33333333 | U20: =EXP(-(2*U$9*(T20/1440)*(-G$8))/(Data!B$13^2*LN('B&R'!J$12))) -> 0.6132136563 | W20: 53.33333333 | X20: =EXP(-(2*X$9*(W20/1440)*(-G$8))/(Data!B$13^2*LN('B&R'!$J$12))) -> 0.7830795977 | Z20: 53.33333333 | AA20: =EXP(-(2*AA$9*(Z20/1440)*(-G$8))/(Data!B$13^2*LN('B&R'!$J$12))) -> 0.884917848 | AC20: 53.33333333 | AD20: =EXP(-(2*AD$9*(AC20/1440)*(-G$8))/(Data!B$13^2*LN('B&R'!$J$12))) -> 0.9407007218
K21: 15 | L21: =EXP(-(2*L$9*(K21/1440)*(-G$8)/(Data!B$13^2*LN('B&R'!$J$12)))) -> 0.5027234215 | N21: 30 | O21: =EXP(-(2*O$9*(N21/1440)*(-G$8))/(Data!B$13^2*LN('B&R'!$J$12))) -> 0.4233127983 | Q21: 45 | R21: =EXP(-(2*R$9*(Q21/1440)*(-G$8))/(Data!B$13^2*LN('B&R'!$J$12))) -> 0.4381218804 | T21: 60 | U21: =EXP(-(2*U$9*(T21/1440)*(-G$8))/(Data!B$13^2*LN('B&R'!J$12))) -> 0.5768505291 | W21: 60 | X21: =EXP(-(2*X$9*(W21/1440)*(-G$8))/(Data!B$13^2*LN('B&R'!$J$12))) -> 0.759506767 | Z21: 60 | AA21: =EXP(-(2*AA$9*(Z21/1440)*(-G$8))/(Data!B$13^2*LN('B&R'!$J$12))) -> 0.8714968543 | AC21: 60 | AD21: =EXP(-(2*AD$9*(AC21/1440)*(-G$8))/(Data!B$13^2*LN('B&R'!$J$12))) -> 0.9335399586
K22: 16.66666667 | L22: =EXP(-(2*L$9*(K22/1440)*(-G$8)/(Data!B$13^2*LN('B&R'!$J$12)))) -> 0.4657399216 | N22: 33.33333333 | O22: =EXP(-(2*O$9*(N22/1440)*(-G$8))/(Data!B$13^2*LN('B&R'!$J$12))) -> 0.3847506234 | Q22: 50 | R22: =EXP(-(2*R$9*(Q22/1440)*(-G$8))/(Data!B$13^2*LN('B&R'!$J$12))) -> 0.3997349844 | T22: 66.66666667 | U22: =EXP(-(2*U$9*(T22/1440)*(-G$8))/(Data!B$13^2*LN('B&R'!J$12))) -> 0.5426437091 | W22: 66.66666667 | X22: =EXP(-(2*X$9*(W22/1440)*(-G$8))/(Data!B$13^2*LN('B&R'!$J$12))) -> 0.7366435428 | Z22: 66.66666667 | AA22: =EXP(-(2*AA$9*(Z22/1440)*(-G$8))/(Data!B$13^2*LN('B&R'!$J$12))) -> 0.8582794083 | AC22: 66.66666667 | AD22: =EXP(-(2*AD$9*(AC22/1440)*(-G$8))/(Data!B$13^2*LN('B&R'!$J$12))) -> 0.9264337042
K23: 18.33333333 | L23: =EXP(-(2*L$9*(K23/1440)*(-G$8)/(Data!B$13^2*LN('B&R'!$J$12)))) -> 0.4314771608 | N23: 36.66666667 | O23: =EXP(-(2*O$9*(N23/1440)*(-G$8))/(Data!B$13^2*LN('B&R'!$J$12))) -> 0.349701315 | Q23: 55 | R23: =EXP(-(2*R$9*(Q23/1440)*(-G$8))/(Data!B$13^2*LN('B&R'!$J$12))) -> 0.3647114305 | T23: 73.33333333 | U23: =EXP(-(2*U$9*(T23/1440)*(-G$8))/(Data!B$13^2*LN('B&R'!J$12))) -> 0.5104653289 | W23: 73.33333333 | X23: =EXP(-(2*X$9*(W23/1440)*(-G$8))/(Data!B$13^2*LN('B&R'!$J$12))) -> 0.7144685639 | Z23: 73.33333333 | AA23: =EXP(-(2*AA$9*(Z23/1440)*(-G$8))/(Data!B$13^2*LN('B&R'!$J$12))) -> 0.8452624231 | AC23: 73.33333333 | AD23: =EXP(-(2*AD$9*(AC23/1440)*(-G$8))/(Data!B$13^2*LN('B&R'!$J$12))) -> 0.9193815438
K24: 20 | L24: =EXP(-(2*L$9*(K24/1440)*(-G$8)/(Data!B$13^2*LN('B&R'!$J$12)))) -> 0.3997349844 | N24: 40 | O24: =EXP(-(2*O$9*(N24/1440)*(-G$8))/(Data!B$13^2*LN('B&R'!$J$12))) -> 0.3178448644 | Q24: 60 | R24: =EXP(-(2*R$9*(Q24/1440)*(-G$8))/(Data!B$13^2*LN('B&R'!$J$12))) -> 0.332756533 | T24: 80 | U24: =EXP(-(2*U$9*(T24/1440)*(-G$8))/(Data!B$13^2*LN('B&R'!J$12))) -> 0.4801951033 | W24: 80 | X24: =EXP(-(2*X$9*(W24/1440)*(-G$8))/(Data!B$13^2*LN('B&R'!$J$12))) -> 0.6929611124 | Z24: 80 | AA24: =EXP(-(2*AA$9*(Z24/1440)*(-G$8))/(Data!B$13^2*LN('B&R'!$J$12))) -> 0.8324428583 | AC24: 80 | AD24: =EXP(-(2*AD$9*(AC24/1440)*(-G$8))/(Data!B$13^2*LN('B&R'!$J$12))) -> 0.9123830656
K25: 21.66666667 | L25: =EXP(-(2*L$9*(K25/1440)*(-G$8)/(Data!B$13^2*LN('B&R'!$J$12)))) -> 0.3703279623 | N25: 43.33333333 | O25: =EXP(-(2*O$9*(N25/1440)*(-G$8))/(Data!B$13^2*LN('B&R'!$J$12))) -> 0.2888904144 | Q25: 65 | R25: =EXP(-(2*R$9*(Q25/1440)*(-G$8))/(Data!B$13^2*LN('B&R'!$J$12))) -> 0.3036014256 | T25: 86.66666667 | U25: =EXP(-(2*U$9*(T25/1440)*(-G$8))/(Data!B$13^2*LN('B&R'!J$12))) -> 0.4517198803 | W25: 86.66666667 | X25: =EXP(-(2*X$9*(W25/1440)*(-G$8))/(Data!B$13^2*LN('B&R'!$J$12))) -> 0.6721010938 | Z25: 86.66666667 | AA25: =EXP(-(2*AA$9*(Z25/1440)*(-G$8))/(Data!B$13^2*LN('B&R'!$J$12))) -> 0.8198177199 | AC25: 86.66666667 | AD25: =EXP(-(2*AD$9*(AC25/1440)*(-G$8))/(Data!B$13^2*LN('B&R'!$J$12))) -> 0.9054378609
K26: 23.33333333 | L26: =EXP(-(2*L$9*(K26/1440)*(-G$8)/(Data!B$13^2*LN('B&R'!$J$12)))) -> 0.3430843059 | N26: 46.66666667 | O26: =EXP(-(2*O$9*(N26/1440)*(-G$8))/(Data!B$13^2*LN('B&R'!$J$12))) -> 0.2625736039 | Q26: 70 | R26: =EXP(-(2*R$9*(Q26/1440)*(-G$8))/(Data!B$13^2*LN('B&R'!$J$12))) -> 0.2770007994 | T26: 93.33333333 | U26: =EXP(-(2*U$9*(T26/1440)*(-G$8))/(Data!B$13^2*LN('B&R'!J$12))) -> 0.4249332174 | W26: 93.33333333 | X26: =EXP(-(2*X$9*(W26/1440)*(-G$8))/(Data!B$13^2*LN('B&R'!$J$12))) -> 0.6518690186 | Z26: 93.33333333 | AA26: =EXP(-(2*AA$9*(Z26/1440)*(-G$8))/(Data!B$13^2*LN('B&R'!$J$12))) -> 0.8073840589 | AC26: 93.33333333 | AD26: =EXP(-(2*AD$9*(AC26/1440)*(-G$8))/(Data!B$13^2*LN('B&R'!$J$12))) -> 0.8985455241
K27: 25 | L27: =EXP(-(2*L$9*(K27/1440)*(-G$8)/(Data!B$13^2*LN('B&R'!$J$12)))) -> 0.3178448644 | N27: 50 | O27: =EXP(-(2*O$9*(N27/1440)*(-G$8))/(Data!B$13^2*LN('B&R'!$J$12))) -> 0.2386541541 | Q27: 75 | R27: =EXP(-(2*R$9*(Q27/1440)*(-G$8))/(Data!B$13^2*LN('B&R'!$J$12))) -> 0.2527308386 | T27: 100 | U27: =EXP(-(2*U$9*(T27/1440)*(-G$8))/(Data!B$13^2*LN('B&R'!J$12))) -> 0.3997349844 | W27: 100 | X27: =EXP(-(2*X$9*(W27/1440)*(-G$8))/(Data!B$13^2*LN('B&R'!$J$12))) -> 0.6322459841 | Z27: 100 | AA27: =EXP(-(2*AA$9*(Z27/1440)*(-G$8))/(Data!B$13^2*LN('B&R'!$J$12))) -> 0.7951389715 | AC27: 100 | AD27: =EXP(-(2*AD$9*(AC27/1440)*(-G$8))/(Data!B$13^2*LN('B&R'!$J$12))) -> 0.891705653
K28: 26.66666667 | L28: =EXP(-(2*L$9*(K28/1440)*(-G$8)/(Data!B$13^2*LN('B&R'!$J$12)))) -> 0.2944621951 | N28: 53.33333333 | O28: =EXP(-(2*O$9*(N28/1440)*(-G$8))/(Data!B$13^2*LN('B&R'!$J$12))) -> 0.2169136746 | Q28: 80 | R28: =EXP(-(2*R$9*(Q28/1440)*(-G$8))/(Data!B$13^2*LN('B&R'!$J$12))) -> 0.2305873373 | T28: 106.6666667 | U28: =EXP(-(2*U$9*(T28/1440)*(-G$8))/(Data!B$13^2*LN('B&R'!J$12))) -> 0.3760309883 | W28: 106.6666667 | X28: =EXP(-(2*X$9*(W28/1440)*(-G$8))/(Data!B$13^2*LN('B&R'!$J$12))) -> 0.6132136563 | Z28: 106.6666667 | AA28: =EXP(-(2*AA$9*(Z28/1440)*(-G$8))/(Data!B$13^2*LN('B&R'!$J$12))) -> 0.7830795977 | AC28: 106.6666667 | AD28: =EXP(-(2*AD$9*(AC28/1440)*(-G$8))/(Data!B$13^2*LN('B&R'!$J$12))) -> 0.884917848
K29: 28.33333333 | L29: =EXP(-(2*L$9*(K29/1440)*(-G$8)/(Data!B$13^2*LN('B&R'!$J$12)))) -> 0.2727997021 | N29: 56.66666667 | O29: =EXP(-(2*O$9*(N29/1440)*(-G$8))/(Data!B$13^2*LN('B&R'!$J$12))) -> 0.1971536695 | Q29: 85 | R29: =EXP(-(2*R$9*(Q29/1440)*(-G$8))/(Data!B$13^2*LN('B&R'!$J$12))) -> 0.2103839816 | T29: 113.3333333 | U29: =EXP(-(2*U$9*(T29/1440)*(-G$8))/(Data!B$13^2*LN('B&R'!J$12))) -> 0.3537326221 | W29: 113.3333333 | X29: =EXP(-(2*X$9*(W29/1440)*(-G$8))/(Data!B$13^2*LN('B&R'!$J$12))) -> 0.5947542536 | Z29: 113.3333333 | AA29: =EXP(-(2*AA$9*(Z29/1440)*(-G$8))/(Data!B$13^2*LN('B&R'!$J$12))) -> 0.7712031208 | AC29: 113.3333333 | AD29: =EXP(-(2*AD$9*(AC29/1440)*(-G$8))/(Data!B$13^2*LN('B&R'!$J$12))) -> 0.8781817129
K30: 30 | L30: =EXP(-(2*L$9*(K30/1440)*(-G$8)/(Data!B$13^2*LN('B&R'!$J$12)))) -> 0.2527308386 | N30: 60 | O30: =EXP(-(2*O$9*(N30/1440)*(-G$8))/(Data!B$13^2*LN('B&R'!$J$12))) -> 0.1791937252 | Q30: 90 | R30: =EXP(-(2*R$9*(Q30/1440)*(-G$8))/(Data!B$13^2*LN('B&R'!$J$12))) -> 0.1919507821 | T30: 120 | U30: =EXP(-(2*U$9*(T30/1440)*(-G$8))/(Data!B$13^2*LN('B&R'!J$12))) -> 0.332756533 | W30: 120 | X30: =EXP(-(2*X$9*(W30/1440)*(-G$8))/(Data!B$13^2*LN('B&R'!$J$12))) -> 0.5768505291 | Z30: 120 | AA30: =EXP(-(2*AA$9*(Z30/1440)*(-G$8))/(Data!B$13^2*LN('B&R'!$J$12))) -> 0.759506767 | AC30: 120 | AD30: =EXP(-(2*AD$9*(AC30/1440)*(-G$8))/(Data!B$13^2*LN('B&R'!$J$12))) -> 0.8714968543
K31: 31.66666667 | L31: =EXP(-(2*L$9*(K31/1440)*(-G$8)/(Data!B$13^2*LN('B&R'!$J$12)))) -> 0.2341383669 | N31: 63.33333333 | O31: =EXP(-(2*O$9*(N31/1440)*(-G$8))/(Data!B$13^2*LN('B&R'!$J$12))) -> 0.162869863 | Q31: 95 | R31: =EXP(-(2*R$9*(Q31/1440)*(-G$8))/(Data!B$13^2*LN('B&R'!$J$12))) -> 0.175132643 | T31: 126.6666667 | U31: =EXP(-(2*U$9*(T31/1440)*(-G$8))/(Data!B$13^2*LN('B&R'!J$12))) -> 0.3130243107 | W31: 126.6666667 | X31: =EXP(-(2*X$9*(W31/1440)*(-G$8))/(Data!B$13^2*LN('B&R'!$J$12))) -> 0.5594857556 | Z31: 126.6666667 | AA31: =EXP(-(2*AA$9*(Z31/1440)*(-G$8))/(Data!B$13^2*LN('B&R'!$J$12))) -> 0.7479878045 | AC31: 126.6666667 | AD31: =EXP(-(2*AD$9*(AC31/1440)*(-G$8))/(Data!B$13^2*LN('B&R'!$J$12))) -> 0.8648628819
K32: 33.33333333 | L32: =EXP(-(2*L$9*(K32/1440)*(-G$8)/(Data!B$13^2*LN('B&R'!$J$12)))) -> 0.2169136746 | N32: 66.66666667 | O32: =EXP(-(2*O$9*(N32/1440)*(-G$8))/(Data!B$13^2*LN('B&R'!$J$12))) -> 0.1480330422 | Q32: 100 | R32: =EXP(-(2*R$9*(Q32/1440)*(-G$8))/(Data!B$13^2*LN('B&R'!$J$12))) -> 0.1597880577 | T32: 133.3333333 | U32: =EXP(-(2*U$9*(T32/1440)*(-G$8))/(Data!B$13^2*LN('B&R'!J$12))) -> 0.2944621951 | W32: 133.3333333 | X32: =EXP(-(2*X$9*(W32/1440)*(-G$8))/(Data!B$13^2*LN('B&R'!$J$12))) -> 0.5426437091 | Z32: 133.3333333 | AA32: =EXP(-(2*AA$9*(Z32/1440)*(-G$8))/(Data!B$13^2*LN('B&R'!$J$12))) -> 0.7366435428 | AC32: 133.3333333 | AD32: =EXP(-(2*AD$9*(AC32/1440)*(-G$8))/(Data!B$13^2*LN('B&R'!$J$12))) -> 0.8582794083
K33: 35 | L33: =EXP(-(2*L$9*(K33/1440)*(-G$8)/(Data!B$13^2*LN('B&R'!$J$12)))) -> 0.200956139 | N33: 70 | O33: =EXP(-(2*O$9*(N33/1440)*(-G$8))/(Data!B$13^2*LN('B&R'!$J$12))) -> 0.134547799 | Q33: 105 | R33: =EXP(-(2*R$9*(Q33/1440)*(-G$8))/(Data!B$13^2*LN('B&R'!$J$12))) -> 0.145787918 | T33: 140 | U33: =EXP(-(2*U$9*(T33/1440)*(-G$8))/(Data!B$13^2*LN('B&R'!J$12))) -> 0.2770007994 | W33: 140 | X33: =EXP(-(2*X$9*(W33/1440)*(-G$8))/(Data!B$13^2*LN('B&R'!$J$12))) -> 0.5263086542 | Z33: 140 | AA33: =EXP(-(2*AA$9*(Z33/1440)*(-G$8))/(Data!B$13^2*LN('B&R'!$J$12))) -> 0.7254713324 | AC33: 140 | AD33: =EXP(-(2*AD$9*(AC33/1440)*(-G$8))/(Data!B$13^2*LN('B&R'!$J$12))) -> 0.8517460493
K34: 36.66666667 | L34: =EXP(-(2*L$9*(K34/1440)*(-G$8)/(Data!B$13^2*LN('B&R'!$J$12)))) -> 0.1861725403 | N34: 73.33333333 | O34: =EXP(-(2*O$9*(N34/1440)*(-G$8))/(Data!B$13^2*LN('B&R'!$J$12))) -> 0.1222910097 | Q34: 110 | R34: =EXP(-(2*R$9*(Q34/1440)*(-G$8))/(Data!B$13^2*LN('B&R'!$J$12))) -> 0.1330144275 | T34: 146.6666667 | U34: =EXP(-(2*U$9*(T34/1440)*(-G$8))/(Data!B$13^2*LN('B&R'!J$12))) -> 0.260574852 | W34: 146.6666667 | X34: =EXP(-(2*X$9*(W34/1440)*(-G$8))/(Data!B$13^2*LN('B&R'!$J$12))) -> 0.5104653289 | Z34: 146.6666667 | AA34: =EXP(-(2*AA$9*(Z34/1440)*(-G$8))/(Data!B$13^2*LN('B&R'!$J$12))) -> 0.7144685639 | AC34: 146.6666667 | AD34: =EXP(-(2*AD$9*(AC34/1440)*(-G$8))/(Data!B$13^2*LN('B&R'!$J$12))) -> 0.8452624231
K35: 38.33333333 | L35: =EXP(-(2*L$9*(K35/1440)*(-G$8)/(Data!B$13^2*LN('B&R'!$J$12)))) -> 0.1724765161 | N35: 76.66666667 | O35: =EXP(-(2*O$9*(N35/1440)*(-G$8))/(Data!B$13^2*LN('B&R'!$J$12))) -> 0.111150767 | Q35: 115 | R35: =EXP(-(2*R$9*(Q35/1440)*(-G$8))/(Data!B$13^2*LN('B&R'!$J$12))) -> 0.1213601111 | T35: 153.3333333 | U35: =EXP(-(2*U$9*(T35/1440)*(-G$8))/(Data!B$13^2*LN('B&R'!J$12))) -> 0.2451229513 | W35: 153.3333333 | X35: =EXP(-(2*X$9*(W35/1440)*(-G$8))/(Data!B$13^2*LN('B&R'!$J$12))) -> 0.4950989309 | Z35: 153.3333333 | AA35: =EXP(-(2*AA$9*(Z35/1440)*(-G$8))/(Data!B$13^2*LN('B&R'!$J$12))) -> 0.7036326676 | AC35: 153.3333333 | AD35: =EXP(-(2*AD$9*(AC35/1440)*(-G$8))/(Data!B$13^2*LN('B&R'!$J$12))) -> 0.8388281514
K36: 40 | L36: =EXP(-(2*L$9*(K36/1440)*(-G$8)/(Data!B$13^2*LN('B&R'!$J$12)))) -> 0.1597880577 | N36: 80 | O36: =EXP(-(2*O$9*(N36/1440)*(-G$8))/(Data!B$13^2*LN('B&R'!$J$12))) -> 0.1010253578 | Q36: 120 | R36: =EXP(-(2*R$9*(Q36/1440)*(-G$8))/(Data!B$13^2*LN('B&R'!$J$12))) -> 0.1107269102 | T36: 160 | U36: =EXP(-(2*U$9*(T36/1440)*(-G$8))/(Data!B$13^2*LN('B&R'!J$12))) -> 0.2305873373 | W36: 160 | X36: =EXP(-(2*X$9*(W36/1440)*(-G$8))/(Data!B$13^2*LN('B&R'!$J$12))) -> 0.4801951033 | Z36: 160 | AA36: =EXP(-(2*AA$9*(Z36/1440)*(-G$8))/(Data!B$13^2*LN('B&R'!$J$12))) -> 0.6929611124 | AC36: 160 | AD36: =EXP(-(2*AD$9*(AC36/1440)*(-G$8))/(Data!B$13^2*LN('B&R'!$J$12))) -> 0.8324428583
K37: 41.66666667 | L37: =EXP(-(2*L$9*(K37/1440)*(-G$8)/(Data!B$13^2*LN('B&R'!$J$12)))) -> 0.1480330422 | N37: 83.33333333 | O37: =EXP(-(2*O$9*(N37/1440)*(-G$8))/(Data!B$13^2*LN('B&R'!$J$12))) -> 0.09182233458 | Q37: 125 | R37: =EXP(-(2*R$9*(Q37/1440)*(-G$8))/(Data!B$13^2*LN('B&R'!$J$12))) -> 0.1010253578 | T37: 166.6666667 | U37: =EXP(-(2*U$9*(T37/1440)*(-G$8))/(Data!B$13^2*LN('B&R'!J$12))) -> 0.2169136746 | W37: 166.6666667 | X37: =EXP(-(2*X$9*(W37/1440)*(-G$8))/(Data!B$13^2*LN('B&R'!$J$12))) -> 0.4657399216 | Z37: 166.6666667 | AA37: =EXP(-(2*AA$9*(Z37/1440)*(-G$8))/(Data!B$13^2*LN('B&R'!$J$12))) -> 0.682451406 | AC37: 166.6666667 | AD37: =EXP(-(2*AD$9*(AC37/1440)*(-G$8))/(Data!B$13^2*LN('B&R'!$J$12))) -> 0.8261061712
K38: 43.33333333 | L38: =EXP(-(2*L$9*(K38/1440)*(-G$8)/(Data!B$13^2*LN('B&R'!$J$12)))) -> 0.1371427996 | N38: 86.66666667 | O38: =EXP(-(2*O$9*(N38/1440)*(-G$8))/(Data!B$13^2*LN('B&R'!$J$12))) -> 0.08345767152 | Q38: 130 | R38: =EXP(-(2*R$9*(Q38/1440)*(-G$8))/(Data!B$13^2*LN('B&R'!$J$12))) -> 0.09217382565 | T38: 173.3333333 | U38: =EXP(-(2*U$9*(T38/1440)*(-G$8))/(Data!B$13^2*LN('B&R'!J$12))) -> 0.2040508503 | W38: 173.3333333 | X38: =EXP(-(2*X$9*(W38/1440)*(-G$8))/(Data!B$13^2*LN('B&R'!$J$12))) -> 0.4517198803 | Z38: 173.3333333 | AA38: =EXP(-(2*AA$9*(Z38/1440)*(-G$8))/(Data!B$13^2*LN('B&R'!$J$12))) -> 0.6721010938 | AC38: 173.3333333 | AD38: =EXP(-(2*AD$9*(AC38/1440)*(-G$8))/(Data!B$13^2*LN('B&R'!$J$12))) -> 0.8198177199
K39: 45 | L39: =EXP(-(2*L$9*(K39/1440)*(-G$8)/(Data!B$13^2*LN('B&R'!$J$12)))) -> 0.1270537119 | N39: 90 | O39: =EXP(-(2*O$9*(N39/1440)*(-G$8))/(Data!B$13^2*LN('B&R'!$J$12))) -> 0.07585499725 | Q39: 135 | R39: =EXP(-(2*R$9*(Q39/1440)*(-G$8))/(Data!B$13^2*LN('B&R'!$J$12))) -> 0.08409783761 | T39: 180 | U39: =EXP(-(2*U$9*(T39/1440)*(-G$8))/(Data!B$13^2*LN('B&R'!J$12))) -> 0.1919507821 | W39: 180 | X39: =EXP(-(2*X$9*(W39/1440)*(-G$8))/(Data!B$13^2*LN('B&R'!$J$12))) -> 0.4381218804 | Z39: 180 | AA39: =EXP(-(2*AA$9*(Z39/1440)*(-G$8))/(Data!B$13^2*LN('B&R'!$J$12))) -> 0.6619077583 | AC39: 180 | AD39: =EXP(-(2*AD$9*(AC39/1440)*(-G$8))/(Data!B$13^2*LN('B&R'!$J$12))) -> 0.8135771372
K40: 46.66666667 | L40: =EXP(-(2*L$9*(K40/1440)*(-G$8)/(Data!B$13^2*LN('B&R'!$J$12)))) -> 0.1177068409 | N40: 93.33333333 | O40: =EXP(-(2*O$9*(N40/1440)*(-G$8))/(Data!B$13^2*LN('B&R'!$J$12))) -> 0.06894489748 | Q40: 140 | R40: =EXP(-(2*R$9*(Q40/1440)*(-G$8))/(Data!B$13^2*LN('B&R'!$J$12))) -> 0.07672944289 | T40: 186.6666667 | U40: =EXP(-(2*U$9*(T40/1440)*(-G$8))/(Data!B$13^2*LN('B&R'!J$12))) -> 0.1805682393 | W40: 186.6666667 | X40: =EXP(-(2*X$9*(W40/1440)*(-G$8))/(Data!B$13^2*LN('B&R'!$J$12))) -> 0.4249332174 | Z40: 186.6666667 | AA40: =EXP(-(2*AA$9*(Z40/1440)*(-G$8))/(Data!B$13^2*LN('B&R'!$J$12))) -> 0.6518690186 | AC40: 186.6666667 | AD40: =EXP(-(2*AD$9*(AC40/1440)*(-G$8))/(Data!B$13^2*LN('B&R'!$J$12))) -> 0.8073840589
K41: 48.33333333 | L41: =EXP(-(2*L$9*(K41/1440)*(-G$8)/(Data!B$13^2*LN('B&R'!$J$12)))) -> 0.1090475847 | N41: 96.66666667 | O41: =EXP(-(2*O$9*(N41/1440)*(-G$8))/(Data!B$13^2*LN('B&R'!$J$12))) -> 0.06266428134 | Q41: 145 | R41: =EXP(-(2*R$9*(Q41/1440)*(-G$8))/(Data!B$13^2*LN('B&R'!$J$12))) -> 0.07000664432 | T41: 193.3333333 | U41: =EXP(-(2*U$9*(T41/1440)*(-G$8))/(Data!B$13^2*LN('B&R'!J$12))) -> 0.169860673 | W41: 193.3333333 | X41: =EXP(-(2*X$9*(W41/1440)*(-G$8))/(Data!B$13^2*LN('B&R'!$J$12))) -> 0.4121415692 | Z41: 193.3333333 | AA41: =EXP(-(2*AA$9*(Z41/1440)*(-G$8))/(Data!B$13^2*LN('B&R'!$J$12))) -> 0.6419825303 | AC41: 193.3333333 | AD41: =EXP(-(2*AD$9*(AC41/1440)*(-G$8))/(Data!B$13^2*LN('B&R'!$J$12))) -> 0.8012381233
K42: =$D$7 -> 50 | L42: =EXP(-(2*L$9*(K42/1440)*(-G$8)/(Data!B$13^2*LN('B&R'!$J$12)))) -> 0.1010253578 | N42: =$D$8 -> 100 | O42: =EXP(-(2*O$9*(N42/1440)*(-G$8))/(Data!B$13^2*LN('B&R'!$J$12))) -> 0.05695580528 | Q42: =$D$9 -> 150 | R42: =EXP(-(2*R$9*(Q42/1440)*(-G$8))/(Data!B$13^2*LN('B&R'!$J$12))) -> 0.06387287676 | T42: =$D$10 -> 200 | U42: =EXP(-(2*U$9*(T42/1440)*(-G$8))/(Data!B$13^2*LN('B&R'!J$12))) -> 0.1597880577 | W42: =$D$11 -> 200 | X42: =EXP(-(2*X$9*(W42/1440)*(-G$8))/(Data!B$13^2*LN('B&R'!$J$12))) -> 0.3997349844 | Z42: =$D$12 -> 200 | AA42: =EXP(-(2*AA$9*(Z42/1440)*(-G$8))/(Data!B$13^2*LN('B&R'!$J$12))) -> 0.6322459841 | AC42: =$D$13 -> 200 | AD42: =EXP(-(2*AD$9*(AC42/1440)*(-G$8))/(Data!B$13^2*LN('B&R'!$J$12))) -> 0.7951389715
A49: Field Data
A51: Record Data in Fields Below | G51: Calculate and Plot Fields Below
A52: Well ID | C52: Well Dia. (ft) | E52: Total Depth (ft)
A53: Notes | B53: Date | C53: Time | D53: Elapsed Time (min) | E53: Depth To Product (TOC) | F53: Depth to Water (TOC) | G53: Product Thickness (ft) | H53: Drawdown (s) DTP-DTP(initial) (ft) | I53: Normalized Drawdown (s/sinitial)
A54: Initial Measurement
A55: Stopped Bailing/Start Gauging | D55: 0
A56: Well Starts recovering

Sheet Confined (hidden)
A1: Confined LNAPL Model: | E1: Well Designation: | G1: =IF(Data!B1 > 0,Data!B1,"") -> YYY
E2: Date: | G2: =IF(Data!B2 > 0,Data!B2,"") -> date
A5: Depth to base of confining bed (m bgs) [from boring log]: | B5: 7.4
A6: Constant LNAPL discharge to well (m3/d): | B6: 0.1
L9: =Data!N24 -> 0.1285 | M9: =B6 -> 0.1
L10: =B14 -> 0.09533333333 | M10: =M9 -> 0.1
A11: Depth to top of screen (m bgs): | B11: =Data!B10 -> 0 | L11: 0 | M11: 0
A12: Corrected water table elevation (m bgs): | B12: =Data!I21 -> 7.00324
A13: Limiting effective LNAPL thickness in well, bnW (m): | B13: =IF(B5>B11,(B5-B12)/Data!B9,(B11-B12)/Data!B9) -> 0.5086666667
A14: Limiting effective LNAPL drawdown, snW (m): | B14: =(1-Data!B9)*(Confined!B15-Confined!B13) -> 0.09533333333
A15: Initial LNAPL thickness, bnR (m): | B15: =Data!O21 -> 0.942
A16: Radius of influence ratio (from Bouwer and Rice), R/rw: | B16: ='B&R'!J12 -> 6.158053777
A19: LNAPL Transmissivity, Tn (m2/d): | B19: =B6*LN(B16)/(2*PI()*(1-Data!B9)*(B15-B13)) -> 0.3034674271

Sheet Perched (hidden)
A1: Perched LNAPL Model: | E1: Well Designation: | G1: =IF(Data!B1 > 0,Data!B1,"") -> YYY
E2: Date: | G2: =IF(Data!B2 > 0,Data!B2,"") -> date
A5: Depth to top of perching layer, DZ12 (m bgs): | B5: 6.9
A6: Constant LNAPL discharge to well (m3/d): | B6: 0.1
L9: =Data!N24 -> 0.1285 | M9: =B6 -> 0.1
L10: =B13 -> 0.104 | M10: =M9 -> 0.1
A11: Depth to top of screen (m bgs): | B11: =Data!B10 -> 0 | L11: 0 | M11: 0
A12: Corrected water table elevation (m bgs): | B12: =Data!I21 -> 7.00324
A13: Limiting effective LNAPL drawdown, snW (m): | B13: =B5-B14 -> 0.104
A14: Initial depth to product (DTP0) (m bgs): | B14: =Data!E21 -> 6.796
A15: Radius of influence ratio (from Bouwer and Rice), R/rw: | B15: ='B&R'!J12 -> 6.158053777
A18: LNAPL Transmissivity, Tn (m2/d): | B18: =B6*LN(B15)/(2*PI()*B13) -> 0.2781784749

Sheet Flowchart
